Body,Body Name,Date,TransNo,Amount � (Excl VAT),Supplier name,Description,Expense Area,Expense Type,Expense Code,
http://opendatacommunities.org/id/london-borough-council/sutton,London Borough of Sutton,23/11/2021,10005468,33.81, GOOGLE  ADS8517410550,ADS - NOT ALONE IN SUTTON,Peoples Services,Publicity,A44266,
http://opendatacommunities.org/id/london-borough-council/sutton,London Borough of Sutton,30/10/2021,10005468,44.33, FACEBK NN9GC8X9L2,SPLIT - NOT ALONE IN SUTTON ADS (22.17%),Peoples Services,Publicity,A44266,
http://opendatacommunities.org/id/london-borough-council/sutton,London Borough of Sutton,04/11/2021,10005468,0.03, FACEBK H6RFG83AL2,SPLIT - NOT ALONE IN SUTTON (0.02%),Peoples Services,Publicity,A44266,
http://opendatacommunities.org/id/london-borough-council/sutton,London Borough of Sutton,01/11/2021,10005468,174.96, AMZNMKTPLACE,CHILDRENS CENTRE GAZEBO,Health and Wellbeing,Equipment And Materials Purchase,A40000,
http://opendatacommunities.org/id/london-borough-council/sutton,London Borough of Sutton,26/10/2021,10005468,-9.62, AMZ GROWUP-EU,AMAZON REFUND,Health and Wellbeing,PAT Testing,A40005,
http://opendatacommunities.org/id/london-borough-council/sutton,London Borough of Sutton,25/10/2021,10005468,71.79, SAINSBURYS.CO.UK,GROCERIES,Health and Wellbeing,Free Milk,A41007,
http://opendatacommunities.org/id/london-borough-council/sutton,London Borough of Sutton,08/11/2021,10005468,19.48, ASDA STORES,GROCERIES,Health and Wellbeing,Provisions,A41006,
http://opendatacommunities.org/id/london-borough-council/sutton,London Borough of Sutton,21/11/2021,10005468,20.80, TESCO STORE 3235,GROCERIES,Health and Wellbeing,Provisions,A41006,
http://opendatacommunities.org/id/london-borough-council/sutton,London Borough of Sutton,01/11/2021,10005468,97.34, SAINSBURYS.CO.UK,GROCERIES,Health and Wellbeing,Provisions,A41006,
http://opendatacommunities.org/id/london-borough-council/sutton,London Borough of Sutton,20/11/2021,10005468,5.00, POUNDLAND LTD,TOYS AND EQUIPMENT,Health and Wellbeing,Equipment And Materials Purchase,A40000,
http://opendatacommunities.org/id/london-borough-council/sutton,London Borough of Sutton,24/11/2021,10005468,32.91, PARTYRAMA,HELIUM (HAF PROJECT),Health and Wellbeing,Equipment And Materials Purchase,A40000,
http://opendatacommunities.org/id/london-borough-council/sutton,London Borough of Sutton,23/11/2021,10005468,8.32, TWINKL,TWINKL SUBSCRIPTION,Health and Wellbeing,Equipment And Materials Purchase,A40000,
http://opendatacommunities.org/id/london-borough-council/sutton,London Borough of Sutton,25/11/2021,10005468,6.25, B&M 568 - CRAWLEY,ARTS & CRAFTS,Health and Wellbeing,Equipment And Materials Purchase,A40000,
http://opendatacommunities.org/id/london-borough-council/sutton,London Borough of Sutton,23/11/2021,10005468,2.92, SAINSBURYS S/MKTS,FISH FOOD,Health and Wellbeing,Equipment And Materials Purchase,A40000,
http://opendatacommunities.org/id/london-borough-council/sutton,London Borough of Sutton,24/11/2021,10005468,12.49, EBAY COMMERCE UK LTD,BALLOONS (HAF PROJECT),Health and Wellbeing,Equipment And Materials Purchase,A40000,
http://opendatacommunities.org/id/london-borough-council/sutton,London Borough of Sutton,24/11/2021,10005468,8.30, EBAY COMMERCE UK LTD,BALLOONS (HAF PROJECT),Health and Wellbeing,Equipment And Materials Purchase,A40000,
http://opendatacommunities.org/id/london-borough-council/sutton,London Borough of Sutton,05/11/2021,10005468,25.92, AMZNMKTPLACE,TOYS AND EQUIPMENT,Health and Wellbeing,Equipment And Materials Purchase,A40000,
http://opendatacommunities.org/id/london-borough-council/sutton,London Borough of Sutton,03/11/2021,10005468,3.32, AMZNMKTPLACE,TOYS AND EQUIPMENT,Health and Wellbeing,Equipment And Materials Purchase,A40000,
http://opendatacommunities.org/id/london-borough-council/sutton,London Borough of Sutton,03/11/2021,10005468,8.33, ASDA SUPERSTORE,ARTS AND CRAFTS,Health and Wellbeing,Equipment And Materials Purchase,A40000,
http://opendatacommunities.org/id/london-borough-council/sutton,London Borough of Sutton,04/11/2021,10005468,73.96, BAKER ROSS,ARTS AND CRAFTS,Health and Wellbeing,PAT Testing,A40005,
http://opendatacommunities.org/id/london-borough-council/sutton,London Borough of Sutton,15/11/2021,10005468,106.95, SAINSBURYS.CO.UK,GROCERIES,Health and Wellbeing,Provisions,A41006,
http://opendatacommunities.org/id/london-borough-council/sutton,London Borough of Sutton,28/10/2021,10005468,-97.50, WWW.BOMBAYHALWA.COM,Indian sweets for diwali event,Health and Wellbeing,Arts Programme,A44286,
http://opendatacommunities.org/id/london-borough-council/sutton,London Borough of Sutton,28/10/2021,10005468,97.50, WWW.BOMBAYHALWA.COM,Indian sweets for diwali event,Health and Wellbeing,Arts Programme,A44286,
http://opendatacommunities.org/id/london-borough-council/sutton,London Borough of Sutton,20/11/2021,10005468,4.42, FACEBK  ZAVW38BK72,SOCIAL MEDIA POSTING,Health and Wellbeing,Publicity,A44266,
http://opendatacommunities.org/id/london-borough-council/sutton,London Borough of Sutton,05/11/2021,10005468,33.33, FACEBK  P8FU87KJ72,SOCIAL MEDIA POSTING,Health and Wellbeing,Publicity,A44266,
http://opendatacommunities.org/id/london-borough-council/sutton,London Borough of Sutton,19/11/2021,10005468,23.50, FREEDOM CAFFE LTD,MEETING WITH DCMS,Health and Wellbeing,Miscellaneous Expenses,A49000,
http://opendatacommunities.org/id/london-borough-council/sutton,London Borough of Sutton,23/11/2021,10005468,57.50, POST OFFICE COUNTER,DBS PURCHASED FOR 'REDACTED - PERSONAL DATA' FOR CQC (CARE QUALITY COMMISSION) PURPOSES,Health and Wellbeing,DBS Checks,A15029,
http://opendatacommunities.org/id/london-borough-council/sutton,London Borough of Sutton,21/11/2021,10005468,109.98, AMZNMKTPLACE AMAZON.CO,FOLDABLE TABLE AND TROLLEY PURCHASED FOR HEALTH VISITING OUTREACH SESSIONS,Health and Wellbeing,Equipment Purchase & Hire,A40050,
http://opendatacommunities.org/id/london-borough-council/sutton,London Borough of Sutton,05/11/2021,10005468,11.54, SNAP INC SNAP SNAP ADS,ADS - COVID 12-15,Health and Wellbeing,Provider Contract Payments,A44290,
http://opendatacommunities.org/id/london-borough-council/sutton,London Borough of Sutton,06/11/2021,10005468,3.85, SNAP INC SNAP SNAP ADS,ADS - COVID 12-15,Health and Wellbeing,Provider Contract Payments,A44290,
http://opendatacommunities.org/id/london-borough-council/sutton,London Borough of Sutton,06/11/2021,10005468,10.62, SNAP INC SNAP SNAP ADS,ADS - COVID 12-15,Health and Wellbeing,Provider Contract Payments,A44290,
http://opendatacommunities.org/id/london-borough-council/sutton,London Borough of Sutton,06/11/2021,10005468,10.49, SNAP INC SNAP SNAP ADS,ADS - COVID 12-15,Health and Wellbeing,Provider Contract Payments,A44290,
http://opendatacommunities.org/id/london-borough-council/sutton,London Borough of Sutton,15/11/2021,10005468,3.76, SNAP INC SNAP SNAP ADS,ADS - COVID 12-15,Health and Wellbeing,Provider Contract Payments,A44290,
http://opendatacommunities.org/id/london-borough-council/sutton,London Borough of Sutton,12/11/2021,10005468,10.70, SNAP INC SNAP SNAP ADS,ADS - COVID 12-15,Health and Wellbeing,Provider Contract Payments,A44290,
http://opendatacommunities.org/id/london-borough-council/sutton,London Borough of Sutton,05/11/2021,10005468,10.23, SNAP INC SNAP SNAP ADS,ADS - COVID 12-15,Health and Wellbeing,Provider Contract Payments,A44290,
http://opendatacommunities.org/id/london-borough-council/sutton,London Borough of Sutton,05/11/2021,10005468,11.50, SNAP INC SNAP SNAP ADS,COVID ADS,Health and Wellbeing,Provider Contract Payments,A44290,
http://opendatacommunities.org/id/london-borough-council/sutton,London Borough of Sutton,03/11/2021,10005468,10.06, SNAP INC SNAP SNAP ADS,COVID ADS,Health and Wellbeing,Provider Contract Payments,A44290,
http://opendatacommunities.org/id/london-borough-council/sutton,London Borough of Sutton,03/11/2021,10005468,11.74, SNAP INC SNAP SNAP ADS,COVID ADS,Health and Wellbeing,Provider Contract Payments,A44290,
http://opendatacommunities.org/id/london-borough-council/sutton,London Borough of Sutton,13/11/2021,10005468,10.12, SNAP INC SNAP SNAP ADS,ADS - COVID 12-15,Health and Wellbeing,Provider Contract Payments,A44290,
http://opendatacommunities.org/id/london-borough-council/sutton,London Borough of Sutton,13/11/2021,10005468,10.13, SNAP INC SNAP SNAP ADS,ADS - COVID 12-15,Health and Wellbeing,Provider Contract Payments,A44290,
http://opendatacommunities.org/id/london-borough-council/sutton,London Borough of Sutton,14/11/2021,10005468,10.75, SNAP INC SNAP SNAP ADS,ADS - COVID 12-15,Health and Wellbeing,Provider Contract Payments,A44290,
http://opendatacommunities.org/id/london-borough-council/sutton,London Borough of Sutton,04/11/2021,10005468,113.71, FACEBK H6RFG83AL2,SPLIT - COVID 12-15 CAMPAIGN (56.86%),Health and Wellbeing,Provider Contract Payments,A44290,
http://opendatacommunities.org/id/london-borough-council/sutton,London Borough of Sutton,18/11/2021,10005468,5.65, SNAP INC SNAP SNAP ADS,ADS - COVID 12-15,Health and Wellbeing,Provider Contract Payments,A44290,
http://opendatacommunities.org/id/london-borough-council/sutton,London Borough of Sutton,23/11/2021,10005468,49.22, FACEBK PLG6F9FAL2,SPLIT - ADS - STRONGER SUTTON (34.37%),Health and Wellbeing,Provider Contract Payments,A44290,
http://opendatacommunities.org/id/london-borough-council/sutton,London Borough of Sutton,22/11/2021,10005468,25.14, SNAP INC SNAP SNAP ADS,ADS - COVID 12-15,Health and Wellbeing,Provider Contract Payments,A44290,
http://opendatacommunities.org/id/london-borough-council/sutton,London Borough of Sutton,19/11/2021,10005468,10.21, SNAP INC SNAP SNAP ADS,ADS - COVID 12-15,Health and Wellbeing,Provider Contract Payments,A44290,
http://opendatacommunities.org/id/london-borough-council/sutton,London Borough of Sutton,20/11/2021,10005468,10.14, SNAP INC SNAP SNAP ADS,ADS - COVID 12-15,Health and Wellbeing,Provider Contract Payments,A44290,
http://opendatacommunities.org/id/london-borough-council/sutton,London Borough of Sutton,21/11/2021,10005468,6.20, SNAP INC SNAP SNAP ADS,ADS - COVID 12-15,Health and Wellbeing,Provider Contract Payments,A44290,
http://opendatacommunities.org/id/london-borough-council/sutton,London Borough of Sutton,20/11/2021,10005468,6.13, SNAP INC SNAP SNAP ADS,ADS - COVID 12-15,Health and Wellbeing,Provider Contract Payments,A44290,
http://opendatacommunities.org/id/london-borough-council/sutton,London Borough of Sutton,20/11/2021,10005468,10.46, SNAP INC SNAP SNAP ADS,ADS - COVID 12-15,Health and Wellbeing,Provider Contract Payments,A44290,
http://opendatacommunities.org/id/london-borough-council/sutton,London Borough of Sutton,30/10/2021,10005468,90.56, FACEBK NN9GC8X9L2,SPLIT - COVID  -12 TO 15 CAMPAIGN (45.28%),Health and Wellbeing,Provider Contract Payments,A44290,
http://opendatacommunities.org/id/london-borough-council/sutton,London Borough of Sutton,16/11/2021,10005468,10.10, SNAP INC SNAP SNAP ADS,ADS - COVID 12-15,Health and Wellbeing,Provider Contract Payments,A44290,
http://opendatacommunities.org/id/london-borough-council/sutton,London Borough of Sutton,15/11/2021,10005468,10.22, SNAP INC SNAP SNAP ADS,ADS - COVID 12-15,Health and Wellbeing,Provider Contract Payments,A44290,
http://opendatacommunities.org/id/london-borough-council/sutton,London Borough of Sutton,13/11/2021,10005468,10.56, SNAP INC SNAP SNAP ADS,ADS - COVID 12-15,Health and Wellbeing,Provider Contract Payments,A44290,
http://opendatacommunities.org/id/london-borough-council/sutton,London Borough of Sutton,14/11/2021,10005468,6.47, SNAP INC SNAP SNAP ADS,ADS - COVID 12-15,Health and Wellbeing,Provider Contract Payments,A44290,
http://opendatacommunities.org/id/london-borough-council/sutton,London Borough of Sutton,04/11/2021,10005468,2.48, SNAP INC SNAP SNAP ADS,COVID ADS,Health and Wellbeing,Provider Contract Payments,A44290,
http://opendatacommunities.org/id/london-borough-council/sutton,London Borough of Sutton,03/11/2021,10005468,10.46, SNAP INC SNAP SNAP ADS,COVID ADS,Health and Wellbeing,Provider Contract Payments,A44290,
http://opendatacommunities.org/id/london-borough-council/sutton,London Borough of Sutton,17/11/2021,10005468,10.36, SNAP INC SNAP SNAP ADS,ADS - COVID 12-15,Health and Wellbeing,Provider Contract Payments,A44290,
http://opendatacommunities.org/id/london-borough-council/sutton,London Borough of Sutton,16/11/2021,10005468,11.02, SNAP INC SNAP SNAP ADS,ADS - COVID 12-15,Health and Wellbeing,Provider Contract Payments,A44290,
http://opendatacommunities.org/id/london-borough-council/sutton,London Borough of Sutton,17/11/2021,10005468,11.22, SNAP INC SNAP SNAP ADS,ADS - COVID 12-15,Health and Wellbeing,Provider Contract Payments,A44290,
http://opendatacommunities.org/id/london-borough-council/sutton,London Borough of Sutton,04/11/2021,10005468,11.14, SNAP INC SNAP SNAP ADS,COVID ADS,Health and Wellbeing,Provider Contract Payments,A44290,
http://opendatacommunities.org/id/london-borough-council/sutton,London Borough of Sutton,07/11/2021,10005468,10.15, SNAP INC SNAP SNAP ADS,ADS - COVID 12-15,Health and Wellbeing,Provider Contract Payments,A44290,
http://opendatacommunities.org/id/london-borough-council/sutton,London Borough of Sutton,08/11/2021,10005468,8.93, SNAP INC SNAP SNAP ADS,ADS - COVID 12-15,Health and Wellbeing,Provider Contract Payments,A44290,
http://opendatacommunities.org/id/london-borough-council/sutton,London Borough of Sutton,07/11/2021,10005468,7.16, SNAP INC SNAP SNAP ADS,ADS - COVID 12-15,Health and Wellbeing,Provider Contract Payments,A44290,
http://opendatacommunities.org/id/london-borough-council/sutton,London Borough of Sutton,08/11/2021,10005468,10.02, SNAP INC SNAP SNAP ADS,ADS - COVID 12-15,Health and Wellbeing,Provider Contract Payments,A44290,
http://opendatacommunities.org/id/london-borough-council/sutton,London Borough of Sutton,10/11/2021,10005468,10.44, SNAP INC SNAP SNAP ADS,ADS - COVID 12-15,Health and Wellbeing,Provider Contract Payments,A44290,
http://opendatacommunities.org/id/london-borough-council/sutton,London Borough of Sutton,11/11/2021,10005468,11.56, SNAP INC SNAP SNAP ADS,ADS - COVID 12-15,Health and Wellbeing,Provider Contract Payments,A44290,
http://opendatacommunities.org/id/london-borough-council/sutton,London Borough of Sutton,10/11/2021,10005468,10.74, SNAP INC SNAP SNAP ADS,ADS - COVID 12-15,Health and Wellbeing,Provider Contract Payments,A44290,
http://opendatacommunities.org/id/london-borough-council/sutton,London Borough of Sutton,09/11/2021,10005468,10.17, SNAP INC SNAP SNAP ADS,ADS - COVID 12-15,Health and Wellbeing,Provider Contract Payments,A44290,
http://opendatacommunities.org/id/london-borough-council/sutton,London Borough of Sutton,09/11/2021,10005468,2.45, SNAP INC SNAP SNAP ADS,ADS - COVID 12-15,Health and Wellbeing,Provider Contract Payments,A44290,
http://opendatacommunities.org/id/london-borough-council/sutton,London Borough of Sutton,13/11/2021,10005468,11.63, SNAP INC SNAP SNAP ADS,ADS - COVID 12-15,Health and Wellbeing,Provider Contract Payments,A44290,
http://opendatacommunities.org/id/london-borough-council/sutton,London Borough of Sutton,06/11/2021,10005468,10.54, SNAP INC SNAP SNAP ADS,ADS - COVID 12-15,Health and Wellbeing,Provider Contract Payments,A44290,
http://opendatacommunities.org/id/london-borough-council/sutton,London Borough of Sutton,07/11/2021,10005468,10.08, SNAP INC SNAP SNAP ADS,ADS - COVID 12-15,Health and Wellbeing,Provider Contract Payments,A44290,
http://opendatacommunities.org/id/london-borough-council/sutton,London Borough of Sutton,14/11/2021,10005468,10.04, SNAP INC SNAP SNAP ADS,ADS - COVID 12-15,Health and Wellbeing,Provider Contract Payments,A44290,
http://opendatacommunities.org/id/london-borough-council/sutton,London Borough of Sutton,14/11/2021,10005468,10.08, SNAP INC SNAP SNAP ADS,ADS - COVID 12-15,Health and Wellbeing,Provider Contract Payments,A44290,
http://opendatacommunities.org/id/london-borough-council/sutton,London Borough of Sutton,07/11/2021,10005468,10.31, SNAP INC SNAP SNAP ADS,ADS - COVID 12-15,Health and Wellbeing,Provider Contract Payments,A44290,
http://opendatacommunities.org/id/london-borough-council/sutton,London Borough of Sutton,11/11/2021,10005468,11.30, SNAP INC SNAP SNAP ADS,ADS - COVID 12-15,Health and Wellbeing,Provider Contract Payments,A44290,
http://opendatacommunities.org/id/london-borough-council/sutton,London Borough of Sutton,12/11/2021,10005468,2.62, SNAP INC SNAP SNAP ADS,ADS - COVID 12-15,Health and Wellbeing,Provider Contract Payments,A44290,
http://opendatacommunities.org/id/london-borough-council/sutton,London Borough of Sutton,18/11/2021,10005468,10.79, SNAP INC SNAP SNAP ADS,ADS - COVID 12-15,Health and Wellbeing,Other Supplies & Services,A44291,
http://opendatacommunities.org/id/london-borough-council/sutton,London Borough of Sutton,23/11/2021,10005468,9.82, SNAP INC SNAP SNAP ADS,ADS - COVID 12-15,Health and Wellbeing,Other Supplies & Services,A44291,
http://opendatacommunities.org/id/london-borough-council/sutton,London Borough of Sutton,19/11/2021,10005468,6.99, SNAP INC SNAP SNAP ADS,ADS - COVID 12-15,Resources,Provider Contract Payments,A44290,
http://opendatacommunities.org/id/london-borough-council/sutton,London Borough of Sutton,11/11/2021,10005468,10.22, SNAP INC SNAP SNAP ADS,ADS - COVID 12-15,Resources,Provider Contract Payments,A44290,
http://opendatacommunities.org/id/london-borough-council/sutton,London Borough of Sutton,08/11/2021,10005468,10.50, SNAP INC SNAP SNAP ADS,ADS - COVID 12-15,Resources,Provider Contract Payments,A44290,
http://opendatacommunities.org/id/london-borough-council/sutton,London Borough of Sutton,03/11/2021,10005468,8.32, SPOTIFY UK,MUSIC FOR WEDDINGS,Resources,Subscriptions,A47010,
http://opendatacommunities.org/id/london-borough-council/sutton,London Borough of Sutton,23/11/2021,10005468,50.09, WWW.INSTANTPRINT.C,BANNER FOR WEDDING FAIR HELD 07.11.2021 AT HONEYWOOD,Resources,Miscellaneous Expenses,A49000,
http://opendatacommunities.org/id/london-borough-council/sutton,London Borough of Sutton,09/11/2021,10005468,1.50, ROYAL MAIL CHARGES,ROYAL MAIL CHARGES - UNPAID STAMPAGE,Resources,Miscellaneous Expenses,A49000,
http://opendatacommunities.org/id/london-borough-council/sutton,London Borough of Sutton,09/11/2021,10005468,1.50, ROYAL MAIL CHARGES,ROYAL MAIL CHARGES - UNPAID STAMPAGE,Resources,Miscellaneous Expenses,A49000,
http://opendatacommunities.org/id/london-borough-council/sutton,London Borough of Sutton,14/11/2021,10005468,305.55, MAILCHIMP    MONTHLY,WEB HOSTING,Resources,IT Software Purchase,A45040,
http://opendatacommunities.org/id/london-borough-council/sutton,London Borough of Sutton,15/11/2021,10005468,8.40, MAILCHIMP    MONTHLY,WEB HOSTING,Resources,IT Software Purchase,A45040,
http://opendatacommunities.org/id/london-borough-council/sutton,London Borough of Sutton,02/11/2021,10005468,12.70, PAYPAL  ADDONS,NOVEMBER MONTHLY SUBSCRIPTION,Resources,IT Software Purchase,A45040,
http://opendatacommunities.org/id/london-borough-council/sutton,London Borough of Sutton,01/11/2021,10005468,25.34, PAYPAL  ADDONS,NOVEMBER MONTHLY SUBSCRIPTION X2,Resources,IT Software Purchase,A45040,
http://opendatacommunities.org/id/london-borough-council/sutton,London Borough of Sutton,19/11/2021,10005468,5.20, PORTANT.CO,FOREIGN EXCHANGE FEE,Resources,Business Support Support,H10011,
http://opendatacommunities.org/id/london-borough-council/sutton,London Borough of Sutton,22/11/2021,10005468,0.14, PORTANT.CO,FOREIGN EXCHANGE FEE,Resources,Business Support Support,H10011,
http://opendatacommunities.org/id/london-borough-council/sutton,London Borough of Sutton,17/11/2021,10005468,"2,900.00", WWW.ICO.ORG.UK,DATA PROTECTION ANNUAL FEE,Resources,Subscriptions,A47010,
http://opendatacommunities.org/id/london-borough-council/sutton,London Borough of Sutton,27/10/2021,10005468,29.00, IZETTLE MERCHANT SERVI,CARD READER FOR MAYOR'S CHARITY FUND,Resources,Equipment And Materials Purchase,A40000,
http://opendatacommunities.org/id/london-borough-council/sutton,London Borough of Sutton,26/10/2021,10005468,21.65, VALUE PRODUCTS LTD,HI VIZ JACKETS,Resources,Equipment And Materials Purchase,A40000,
http://opendatacommunities.org/id/london-borough-council/sutton,London Borough of Sutton,15/11/2021,10005468,16.66, AMZNMKTPLACE,"SPLIT - YOTOCVERSION 1.7 METER/67 INCH PHONE TRIPOD STAND & BLUETOOTH SELFIE STICK TRIPOD, CELLPHONE TRIPOD WITH BLUETOOTH REMOTE, COMPATIBLE WITH IPHONE 12/1 (100%)",Resources,Equipment And Materials Purchase,A40000,
http://opendatacommunities.org/id/london-borough-council/sutton,London Borough of Sutton,09/11/2021,10005468,-10.49, AMZ TAQAYA EU,REFUND FOR AMAZON MICROPHONE PURCHASE,Resources,PAT Testing,A40005,
http://opendatacommunities.org/id/london-borough-council/sutton,London Borough of Sutton,01/11/2021,10005468,152.05, SPOTIFY,STRONGER SUTTON ADS,Resources,Surveys,A44136,
http://opendatacommunities.org/id/london-borough-council/sutton,London Borough of Sutton,23/11/2021,10005468,93.98, FACEBK PLG6F9FAL2,SPLIT - ADS - COVID 12-15 (65.63%),Resources,Surveys,A44136,
http://opendatacommunities.org/id/london-borough-council/sutton,London Borough of Sutton,30/10/2021,10005468,65.11, FACEBK NN9GC8X9L2,SPLIT - STRONGER SUTTON (32.56%),Resources,Surveys,A44136,
http://opendatacommunities.org/id/london-borough-council/sutton,London Borough of Sutton,04/11/2021,10005468,86.26, FACEBK H6RFG83AL2,SPLIT - STRONGER SUTTON CONVERSATION (43.13%),Resources,Surveys,A44136,
http://opendatacommunities.org/id/london-borough-council/sutton,London Borough of Sutton,15/11/2021,10005468,0.32, MAILCHIMP,MAILCHIMP FEE,Resources,Subscriptions,A47010,
http://opendatacommunities.org/id/london-borough-council/sutton,London Borough of Sutton,12/11/2021,10005468,11.85, CLIPCHAMP.COM,VIDEO EDITING SUBSCRIPTION A47010 C63500,Resources,Subscriptions,A47010,
http://opendatacommunities.org/id/london-borough-council/sutton,London Borough of Sutton,21/11/2021,10005468,202.92, MAILCHIMP,MAILCHIMP E NEWSLETTER SUBSCRIPTION,Resources,Subscriptions,A47010,
http://opendatacommunities.org/id/london-borough-council/sutton,London Borough of Sutton,25/10/2021,10005468,137.00, WWW.CIPS.ORG,PROFESSIONAL MEMBERSHIP FEE - CIPS (X 2),Resources,Catering,A41000,
http://opendatacommunities.org/id/london-borough-council/sutton,London Borough of Sutton,25/10/2021,10005468,137.00, WWW.CIPS.ORG,PROFESSIONAL MEMBERSHIP FEE - CIPS,Resources,Catering,A41000,
http://opendatacommunities.org/id/london-borough-council/sutton,London Borough of Sutton,09/11/2021,10005468,333.95, ARGOS LTD,CL&G,Resources,"Grants, Contributions & Donations",A47005,
http://opendatacommunities.org/id/london-borough-council/sutton,London Borough of Sutton,26/10/2021,10005468,122.95, ARGOS LTD,CL&G,Resources,"Grants, Contributions & Donations",A47005,
http://opendatacommunities.org/id/london-borough-council/sutton,London Borough of Sutton,25/10/2021,10005468,242.94, ARGOS LTD,CL&G,Resources,"Grants, Contributions & Donations",A47005,
http://opendatacommunities.org/id/london-borough-council/sutton,London Borough of Sutton,11/11/2021,10005468,269.99, CURRYS ONLINE,CL&G,Resources,"Grants, Contributions & Donations",A47005,
http://opendatacommunities.org/id/london-borough-council/sutton,London Borough of Sutton,09/11/2021,10005468,178.95, ARGOS LTD,CL&G,Resources,"Grants, Contributions & Donations",A47005,
http://opendatacommunities.org/id/london-borough-council/sutton,London Borough of Sutton,09/11/2021,10005468,202.95, ARGOS LTD,CL&G,Resources,"Grants, Contributions & Donations",A47005,
http://opendatacommunities.org/id/london-borough-council/sutton,London Borough of Sutton,10/11/2021,10005468,45.76, PAYPAL  ADDONS,CL&G,Resources,"Grants, Contributions & Donations",A47005,
http://opendatacommunities.org/id/london-borough-council/sutton,London Borough of Sutton,10/11/2021,10005468,553.99, CURRYS ONLINE,CL&G,Resources,"Grants, Contributions & Donations",A47005,
http://opendatacommunities.org/id/london-borough-council/sutton,London Borough of Sutton,05/11/2021,10005468,229.99, CURRYS ONLINE,CL&G,Resources,"Grants, Contributions & Donations",A47005,
http://opendatacommunities.org/id/london-borough-council/sutton,London Borough of Sutton,03/11/2021,10005468,313.95, ARGOS LTD,CL&G,Resources,"Grants, Contributions & Donations",A47005,
http://opendatacommunities.org/id/london-borough-council/sutton,London Borough of Sutton,04/11/2021,10005468,358.99, CURRYS ONLINE,CL&G,Resources,"Grants, Contributions & Donations",A47005,
http://opendatacommunities.org/id/london-borough-council/sutton,London Borough of Sutton,03/11/2021,10005468,-776.94, ARGOS LTD,CL&G,Resources,"Grants, Contributions & Donations",A47005,
http://opendatacommunities.org/id/london-borough-council/sutton,London Borough of Sutton,03/11/2021,10005468,-195.00, ARGOS LTD,CL&G,Resources,"Grants, Contributions & Donations",A47005,
http://opendatacommunities.org/id/london-borough-council/sutton,London Borough of Sutton,11/11/2021,10005468,394.99, ARGOS LTD,CL&G,Resources,"Grants, Contributions & Donations",A47005,
http://opendatacommunities.org/id/london-borough-council/sutton,London Borough of Sutton,04/11/2021,10005468,298.95, ARGOS LTD,CL&G,Resources,"Grants, Contributions & Donations",A47005,
http://opendatacommunities.org/id/london-borough-council/sutton,London Borough of Sutton,24/11/2021,10005468,638.99, ARGOS LTD,CL&G,Resources,"Grants, Contributions & Donations",A47005,
http://opendatacommunities.org/id/london-borough-council/sutton,London Borough of Sutton,25/11/2021,10005468,309.00, CURRYS ONLINE,CL&G,Resources,"Grants, Contributions & Donations",A47005,
http://opendatacommunities.org/id/london-borough-council/sutton,London Borough of Sutton,23/11/2021,10005468,261.50, CURRYS ONLINE,CL&G,Resources,"Grants, Contributions & Donations",A47005,
http://opendatacommunities.org/id/london-borough-council/sutton,London Borough of Sutton,19/11/2021,10005468,159.00, CURRYS ONLINE,CL&G,Resources,"Grants, Contributions & Donations",A47005,
http://opendatacommunities.org/id/london-borough-council/sutton,London Borough of Sutton,02/11/2021,10005468,-294.00, CURRYS ONLINE,CL&G,Resources,"Grants, Contributions & Donations",A47005,
http://opendatacommunities.org/id/london-borough-council/sutton,London Borough of Sutton,02/11/2021,10005468,223.95, ARGOS LTD,CL&G,Resources,"Grants, Contributions & Donations",A47005,
http://opendatacommunities.org/id/london-borough-council/sutton,London Borough of Sutton,02/11/2021,10005468,776.94, ARGOS LTD,CL&G,Resources,"Grants, Contributions & Donations",A47005,
http://opendatacommunities.org/id/london-borough-council/sutton,London Borough of Sutton,02/11/2021,10005468,304.99, CURRYS ONLINE,CL&G,Resources,"Grants, Contributions & Donations",A47005,
http://opendatacommunities.org/id/london-borough-council/sutton,London Borough of Sutton,02/11/2021,10005468,294.00, CURRYS ONLINE,CL&G,Resources,"Grants, Contributions & Donations",A47005,
http://opendatacommunities.org/id/london-borough-council/sutton,London Borough of Sutton,26/10/2021,10005468,-37.50, AO RETAIL LIMITED,CL&G,Resources,"Grants, Contributions & Donations",A47005,
http://opendatacommunities.org/id/london-borough-council/sutton,London Borough of Sutton,27/10/2021,10005468,169.00, CURRYS ONLINE,CL&G,Resources,"Grants, Contributions & Donations",A47005,
http://opendatacommunities.org/id/london-borough-council/sutton,London Borough of Sutton,10/11/2021,10005468,198.95, ARGOS LTD,CL&G,Resources,"Grants, Contributions & Donations",A47005,
http://opendatacommunities.org/id/london-borough-council/sutton,London Borough of Sutton,10/11/2021,10005468,190.00, ARGOS LTD,CL&G,Resources,"Grants, Contributions & Donations",A47005,
http://opendatacommunities.org/id/london-borough-council/sutton,London Borough of Sutton,11/11/2021,10005468,324.00, CURRYS ONLINE,CL&G,Resources,"Grants, Contributions & Donations",A47005,
http://opendatacommunities.org/id/london-borough-council/sutton,London Borough of Sutton,19/11/2021,10005468,189.99, ARGOS LTD,CL&G,Resources,"Grants, Contributions & Donations",A47005,
http://opendatacommunities.org/id/london-borough-council/sutton,London Borough of Sutton,17/11/2021,10005468,-389.99, ARGOS LTD,CL&G,Resources,"Grants, Contributions & Donations",A47005,
http://opendatacommunities.org/id/london-borough-council/sutton,London Borough of Sutton,16/11/2021,10005468,532.95, ARGOS LTD,CL&G,Resources,"Grants, Contributions & Donations",A47005,
http://opendatacommunities.org/id/london-borough-council/sutton,London Borough of Sutton,17/11/2021,10005468,169.99, CURRYS ONLINE,CL&G,Resources,"Grants, Contributions & Donations",A47005,
http://opendatacommunities.org/id/london-borough-council/sutton,London Borough of Sutton,16/11/2021,10005468,559.98, ARGOS LTD,CL&G,Resources,"Grants, Contributions & Donations",A47005,
http://opendatacommunities.org/id/london-borough-council/sutton,London Borough of Sutton,12/11/2021,10005468,438.99, CURRYS ONLINE,CL&G,Resources,"Grants, Contributions & Donations",A47005,
http://opendatacommunities.org/id/london-borough-council/sutton,London Borough of Sutton,09/11/2021,10005468,-178.95, ARGOS LTD,CL&G,Resources,"Grants, Contributions & Donations",A47005,
http://opendatacommunities.org/id/london-borough-council/sutton,London Borough of Sutton,08/11/2021,10005468,197.95, ARGOS LTD,CL&G,Resources,"Grants, Contributions & Donations",A47005,
http://opendatacommunities.org/id/london-borough-council/sutton,London Borough of Sutton,08/11/2021,10005468,329.99, ARGOS LTD,CL&G,Resources,"Grants, Contributions & Donations",A47005,
http://opendatacommunities.org/id/london-borough-council/sutton,London Borough of Sutton,11/11/2021,10005468,333.95, ARGOS LTD,CL&G,Resources,"Grants, Contributions & Donations",A47005,
http://opendatacommunities.org/id/london-borough-council/sutton,London Borough of Sutton,11/11/2021,10005468,619.98, ARGOS LTD,CL&G,Resources,"Grants, Contributions & Donations",A47005,
http://opendatacommunities.org/id/london-borough-council/sutton,London Borough of Sutton,11/11/2021,10005468,-394.99, ARGOS LTD,CL&G,Resources,"Grants, Contributions & Donations",A47005,
http://opendatacommunities.org/id/london-borough-council/sutton,London Borough of Sutton,11/11/2021,10005468,-324.00, CURRYS ONLINE,CL&G,Resources,"Grants, Contributions & Donations",A47005,
http://opendatacommunities.org/id/london-borough-council/sutton,London Borough of Sutton,12/11/2021,10005468,242.95, ARGOS LTD,CL&G,Resources,"Grants, Contributions & Donations",A47005,
http://opendatacommunities.org/id/london-borough-council/sutton,London Borough of Sutton,11/11/2021,10005468,324.00, CURRYS ONLINE,CL&G,Resources,"Grants, Contributions & Donations",A47005,
http://opendatacommunities.org/id/london-borough-council/sutton,London Borough of Sutton,09/11/2021,10005468,331.95, ARGOS LTD,CL&G,Resources,"Grants, Contributions & Donations",A47005,
http://opendatacommunities.org/id/london-borough-council/sutton,London Borough of Sutton,03/11/2021,10005468,255.00, WWW.THELAWSOCIETY.ORG,LAW SOCIETY PRACTISING CERTIFICATE FOR 'REDACTED - PERSONAL DATA' MONITORING OFFICER,Resources,Staff Professional Membership Fees Non Payroll,A15025,
http://opendatacommunities.org/id/london-borough-council/sutton,London Borough of Sutton,04/11/2021,10005468,120.00, THOMSON REUTERS UK LTD,JCT Design & Build Digital Sub-contractor Collateral Warranty for the Employer 2016 for the LBS Social Housing Phase 2A Project,Resources,Books,A43050,
http://opendatacommunities.org/id/london-borough-council/sutton,London Borough of Sutton,26/10/2021,10005468,84.00, THOMSON REUTERS UK LTD,JCT Minor Works Building Contract (MW 2016) (digital version),Resources,Books,A43050,
http://opendatacommunities.org/id/london-borough-council/sutton,London Borough of Sutton,22/11/2021,10005468,1.50, WWW.GOV.UK,114088 'REDACTED - PERSONAL DATA' - PROBATE SEARCH,Resources,Legal Services,A44025,
http://opendatacommunities.org/id/london-borough-council/sutton,London Borough of Sutton,23/11/2021,10005468,1.50, WWW.GOV.UK,121465 'REDACTED - PERSONAL DATA'- PROBATE SEARCH,Resources,Legal Services,A44025,
http://opendatacommunities.org/id/london-borough-council/sutton,London Borough of Sutton,16/11/2021,10005468,90.00, PWC SHOP DIGITAL,PWC VAT SOFTWARE AS AGREED WITH 'REDACTED - PERSONAL DATA',Resources,IT Software Purchase,A45040,
http://opendatacommunities.org/id/london-borough-council/sutton,London Borough of Sutton,01/11/2021,10005468,20.71, REPLACEMENT KEYS LTD,KEY REPLACEMENT - STORAGE CUPBOARDS (OFFICE MOVE),Environment Housing and Neighbourhoods,Furniture - Repairs and Maintenance,A40016,
http://opendatacommunities.org/id/london-borough-council/sutton,London Borough of Sutton,25/11/2021,10005468,12.49, AMZNMKTPLACE,"SPLIT - BIRD COMBINATION KEY CABINET, WALL MOUNTED 20 KEY CABINET SAFE STORAGE OF KEYS AT HOME OR OFFICE (100%)",Environment Housing and Neighbourhoods,Other Supplies & Services,A44291,
http://opendatacommunities.org/id/london-borough-council/sutton,London Borough of Sutton,08/11/2021,10005468,39.66, CITY ELECTRICAL FA,ELECTRICAL SUNDERIES FOR NEW LIGHTING COLUMNS IN THE SQUARE CAR PARK,Environment Housing and Neighbourhoods,Street Lighting - Other,A56084,
http://opendatacommunities.org/id/london-borough-council/sutton,London Borough of Sutton,11/11/2021,10005468,214.17, HOLIDAY INNS,EMERGENCY ACCOMMODATION,Environment Housing and Neighbourhoods,Bed & Breakfast,A56000,
http://opendatacommunities.org/id/london-borough-council/sutton,London Borough of Sutton,15/11/2021,10005468,27.29, HOBBYCRAFT TRADING LIM,CHRISTMAS ART DECORATIONS,Peoples Services,Equipment And Materials Purchase,A40000,
http://opendatacommunities.org/id/london-borough-council/sutton,London Borough of Sutton,15/11/2021,10005468,35.00, SUTTON REGISTER OFFICE,35.00 - A40000 G03040 9999 - BIRTH CERTIFICATE .PNG,Peoples Services,Equipment And Materials Purchase,A40000,
http://opendatacommunities.org/id/london-borough-council/sutton,London Borough of Sutton,23/11/2021,10005468,11.00, SUTTON REGISTER OFFICE,BIRTH CERTIFICATE PAYMENT,Peoples Services,Equipment And Materials Purchase,A40000,
http://opendatacommunities.org/id/london-borough-council/sutton,London Borough of Sutton,16/11/2021,10005468,20.83, GEN REGISTER OFFICE,BIRTH CERT FOR A CLIENT,Peoples Services,Equipment And Materials Purchase,A40000,
http://opendatacommunities.org/id/london-borough-council/sutton,London Borough of Sutton,28/10/2021,10005468,44.00, SUTTON REGISTER OFFICE,BIRTH CERT REQUEST,Peoples Services,Equipment And Materials Purchase,A40000,
http://opendatacommunities.org/id/london-borough-council/sutton,London Borough of Sutton,11/11/2021,10005468,12.24, AMZNMKTPLACE,ITEMS NEEDED FOR THE LEAVING CARE PERSON (81.65%),Peoples Services,Equipment And Materials Purchase,A40000,
http://opendatacommunities.org/id/london-borough-council/sutton,London Borough of Sutton,11/11/2021,10005468,2.75, AMZNMKTPLACE,ITEMS NEEDED FOR THE LEAVING CARE PERSON (18.35%),Peoples Services,Equipment And Materials Purchase,A40000,
http://opendatacommunities.org/id/london-borough-council/sutton,London Borough of Sutton,26/10/2021,10005468,"1,277.50", AO RETAIL LIMITED,AO,Peoples Services,Equipment And Materials Purchase,A40000,
http://opendatacommunities.org/id/london-borough-council/sutton,London Borough of Sutton,25/11/2021,10005468,83.33, VOUCHER EXPRESS,BIRTHDAY PRESENT FOR A YOUNG PERSON,Peoples Services,Miscellaneous Expenses,A49000,
http://opendatacommunities.org/id/london-borough-council/sutton,London Borough of Sutton,16/11/2021,10005468,22.99, AMZNMKTPLACE,BOOKS NEEDED FOR A YOUNG PERSON (100%),Peoples Services,Miscellaneous Expenses,A49000,
http://opendatacommunities.org/id/london-borough-council/sutton,London Borough of Sutton,03/11/2021,10005468,39.99, AMZNMKTPLACE,ITEMS NEEDED FOR THE LEAVING CARE PERSON (100%),Peoples Services,Miscellaneous Expenses,A49000,
http://opendatacommunities.org/id/london-borough-council/sutton,London Borough of Sutton,24/11/2021,10005468,12.55, PPOINT_ D.A.R MINI MAR,DR,Peoples Services,Miscellaneous Expenses,A49000,
http://opendatacommunities.org/id/london-borough-council/sutton,London Borough of Sutton,23/11/2021,10005468,76.18, HM HENNES  MAURITZ U,CLOTHING NEEDED FOR CLIENT,Peoples Services,Miscellaneous Expenses,A49000,
http://opendatacommunities.org/id/london-borough-council/sutton,London Borough of Sutton,19/11/2021,10005468,32.30, SAINSBURYS S/MKTS,DR,Peoples Services,Miscellaneous Expenses,A49000,
http://opendatacommunities.org/id/london-borough-council/sutton,London Borough of Sutton,09/11/2021,10005468,7.00, SAINSBURYS S/MKTS,MC ACTIVITY,Peoples Services,Miscellaneous Expenses,A49000,
http://opendatacommunities.org/id/london-borough-council/sutton,London Borough of Sutton,03/11/2021,10005468,15.00, WWW.UTILITA.CO.UK,MC UTILITIES,Peoples Services,Miscellaneous Expenses,A49000,
http://opendatacommunities.org/id/london-borough-council/sutton,London Borough of Sutton,03/11/2021,10005468,30.00, BROADWAY COMPUTERS,RM,Peoples Services,Miscellaneous Expenses,A49000,
http://opendatacommunities.org/id/london-borough-council/sutton,London Borough of Sutton,03/11/2021,10005468,34.70, AMZNMKTPLACE,ITEMS NEEDED FOR THE LEAVING CARE PERSON (100%),Peoples Services,Miscellaneous Expenses,A49000,
http://opendatacommunities.org/id/london-borough-council/sutton,London Borough of Sutton,29/10/2021,10005468,69.98, EE LIMITED,EE FOR SERVICE USER GH,Peoples Services,Miscellaneous Expenses,A49000,
http://opendatacommunities.org/id/london-borough-council/sutton,London Borough of Sutton,22/11/2021,10005468,8.33, SMART TOP UP,FCF GAS,Peoples Services,Miscellaneous Expenses,A49000,
http://opendatacommunities.org/id/london-borough-council/sutton,London Borough of Sutton,11/11/2021,10005468,208.95, ARGOS LTD,CLA - HABITAT LAVENDON DOUBLE END OPENING OTTOMAN BED FRAME - GREY,Peoples Services,Set Up Costs - Children Leaving Care,A61021,
http://opendatacommunities.org/id/london-borough-council/sutton,London Borough of Sutton,09/11/2021,10005468,-199.00, DUNELM,RETURNED FURNITURE,Peoples Services,Set Up Costs - Children Leaving Care,A61021,
http://opendatacommunities.org/id/london-borough-council/sutton,London Borough of Sutton,11/11/2021,10005468,212.50, IKEA LTD SHOP ONLINE,SETTING UP COST FOR YP,Peoples Services,Set Up Costs - Children Leaving Care,A61021,
http://opendatacommunities.org/id/london-borough-council/sutton,London Borough of Sutton,12/11/2021,10005468,465.82, CURRYS ONLINE,SETTING UP ALLOWANCE FOR YP,Peoples Services,Set Up Costs - Children Leaving Care,A61021,
http://opendatacommunities.org/id/london-borough-council/sutton,London Borough of Sutton,12/11/2021,10005468,-193.95, ARGOS LTD,REFUND AS THE YP WAS NOT IN,Peoples Services,Set Up Costs - Children Leaving Care,A61021,
http://opendatacommunities.org/id/london-borough-council/sutton,London Borough of Sutton,09/11/2021,10005468,974.97, SUTTON APPLIANCES,APPLIANCES,Peoples Services,Set Up Costs - Children Leaving Care,A61021,
http://opendatacommunities.org/id/london-borough-council/sutton,London Borough of Sutton,23/11/2021,10005468,125.00, IKEA LTD SHOP ONLINE,SETTING UP COSTS FOR A YOUNG PERSON,Peoples Services,Set Up Costs - Children Leaving Care,A61021,
http://opendatacommunities.org/id/london-borough-council/sutton,London Borough of Sutton,25/11/2021,10005468,868.00, DFS TRADING LIMITED,DFS SOFA PAYMENT,Peoples Services,Set Up Costs - Children Leaving Care,A61021,
http://opendatacommunities.org/id/london-borough-council/sutton,London Borough of Sutton,25/11/2021,10005468,179.99, CURRYS ONLINE,CURRYS PAYMENT,Peoples Services,Set Up Costs - Children Leaving Care,A61021,
http://opendatacommunities.org/id/london-borough-council/sutton,London Borough of Sutton,25/11/2021,10005468,259.00, CURRYS ONLINE,CURRYS PAYMENT,Peoples Services,Set Up Costs - Children Leaving Care,A61021,
http://opendatacommunities.org/id/london-borough-council/sutton,London Borough of Sutton,17/11/2021,10005468,124.99, ARGOS LTD,SETTING UP COSTS FOR A CLIENT,Peoples Services,Set Up Costs - Children Leaving Care,A61021,
http://opendatacommunities.org/id/london-borough-council/sutton,London Borough of Sutton,08/11/2021,10005468,417.95, DUNELM,FURNITURE,Peoples Services,Set Up Costs - Children Leaving Care,A61021,
http://opendatacommunities.org/id/london-borough-council/sutton,London Borough of Sutton,01/11/2021,10005468,229.00, AO RETAIL LIMITED,APPLIANCES,Peoples Services,Set Up Costs - Children Leaving Care,A61021,
http://opendatacommunities.org/id/london-borough-council/sutton,London Borough of Sutton,27/10/2021,10005468,330.96, APPLIANCEDIRECT CO,SET UP COST,Peoples Services,Equipment And Materials Purchase,A40000,
http://opendatacommunities.org/id/london-borough-council/sutton,London Borough of Sutton,25/11/2021,10005468,20.38, AMZNMKTPLACE,PERSONAL REQUEST FOR CLIENT (100%),Peoples Services,Miscellaneous Expenses,A49000,
http://opendatacommunities.org/id/london-borough-council/sutton,London Borough of Sutton,25/11/2021,10005468,22.07, AMZNBUSINESS AR28Y18C5,ITEM NEEDED FOR A CLIENT (100%),Peoples Services,Miscellaneous Expenses,A49000,
http://opendatacommunities.org/id/london-borough-council/sutton,London Borough of Sutton,25/11/2021,10005468,13.33, WWW.SAFFRONHALL.COM,ACTIVITY NEEDED FOR A CHILD,Peoples Services,Miscellaneous Expenses,A49000,
http://opendatacommunities.org/id/london-borough-council/sutton,London Borough of Sutton,25/11/2021,10005468,12.99, AMZNMKTPLACE,ITEM NEEDED FOR A CLIENT (100%),Peoples Services,Miscellaneous Expenses,A49000,
http://opendatacommunities.org/id/london-borough-council/sutton,London Borough of Sutton,17/11/2021,10005468,13.33, KIDS WORLD,ACTIVITY NEEDED FOR A CLIENT,Peoples Services,Miscellaneous Expenses,A49000,
http://opendatacommunities.org/id/london-borough-council/sutton,London Borough of Sutton,15/11/2021,10005468,161.62, ARGOS LTD,SETTING UP FOR A49000 G03050,Peoples Services,Miscellaneous Expenses,A49000,
http://opendatacommunities.org/id/london-borough-council/sutton,London Borough of Sutton,12/11/2021,10005468,161.62, ARGOS LTD,MATTRESS NEEDED FOR A VULNERABLE YP,Peoples Services,Miscellaneous Expenses,A49000,
http://opendatacommunities.org/id/london-borough-council/sutton,London Borough of Sutton,28/10/2021,10005468,118.62, TRAVELODGE,TRAVEL LODGE,Peoples Services,Approved Lodgings,A61000,
http://opendatacommunities.org/id/london-borough-council/sutton,London Borough of Sutton,21/11/2021,10005468,173.33, HOTEL IBIS,HOTEL STAY NEEDED FOR A WORKER,Peoples Services,Accommodation - Bed and Breakfast,A62000,
http://opendatacommunities.org/id/london-borough-council/sutton,London Borough of Sutton,10/11/2021,10005468,19.99, AMZNMKTPLACE,ITEMS NEEDED FOR THE LEAVING CARE PERSON (18.18%),Peoples Services,Miscellaneous Expenses,A49000,
http://opendatacommunities.org/id/london-borough-council/sutton,London Borough of Sutton,10/11/2021,10005468,89.99, AMZNMKTPLACE,ITEMS NEEDED FOR THE LEAVING CARE PERSON (81.82%),Peoples Services,Miscellaneous Expenses,A49000,
http://opendatacommunities.org/id/london-borough-council/sutton,London Borough of Sutton,02/11/2021,10005468,31.99, AMAZON.CO.UK 641C36HE5,ITEMS NEEDED FOR THE LEAVING CARE PERSON (100%),Peoples Services,Miscellaneous Expenses,A49000,
http://opendatacommunities.org/id/london-borough-council/sutton,London Borough of Sutton,27/10/2021,10005468,4.16, AMZNMKTPLACE AMAZON.CO,BALANCING ENTRY AMOUNT (18.1%),Peoples Services,Equipment And Materials Purchase,A40000,
http://opendatacommunities.org/id/london-borough-council/sutton,London Borough of Sutton,26/10/2021,10005468,10.71, AMZNMKTPLACE AMAZON.CO,"SPLIT - MIRROR WALL STICKERS, 36 PIECES HEXAGONAL ACRYLIC MIRROR WALL STICKER PLASTIC MIRROR SELF ADHESIVE TILES, 3D REMOVABLE ACRYLIC WALL STICKER FOR HOME L (72.02%)",Peoples Services,Equipment And Materials Purchase,A40000,
http://opendatacommunities.org/id/london-borough-council/sutton,London Borough of Sutton,26/10/2021,10005468,4.16, AMZNMKTPLACE AMAZON.CO,BALANCING ENTRY AMOUNT (27.98%),Peoples Services,Equipment And Materials Purchase,A40000,
http://opendatacommunities.org/id/london-borough-council/sutton,London Borough of Sutton,07/11/2021,10005468,31.98, AMZNMKTPLACE,"SPLIT - MFORSTYLE LIGHT EXTENDABLE CAFE ROD MINI CURTAIN POLE -  8/10 MM - SILVER CHROME OR BRASS OR BLACK - METAL LARGE SELECTION - RANGE (31.5"" - 55.1"" (8 (100%)",Peoples Services,Equipment And Materials Purchase,A40000,
http://opendatacommunities.org/id/london-borough-council/sutton,London Borough of Sutton,05/11/2021,10005468,19.99, AMZNMKTPLACE,SPLIT - CAFE ROD NET CURTAIN POLE EXTENDABLE 135CM - 225CM MATT BLACK - TELESCOPIC METAL ROD DIAMETER 12MM JOINING IN THE CENTRE (100%),Peoples Services,Equipment And Materials Purchase,A40000,
http://opendatacommunities.org/id/london-borough-council/sutton,London Borough of Sutton,06/11/2021,10005468,23.99, AMZNMKTPLACE,SPLIT - FURNISHED ALUMINIUM VENETIAN WINDOW BLINDS MADE TO MEASURE HOME OFFICE BLIND NEW - WHITE ALUMINIUM 90CM X 150CM (100%),Peoples Services,Equipment And Materials Purchase,A40000,
http://opendatacommunities.org/id/london-borough-council/sutton,London Borough of Sutton,15/11/2021,10005468,22.10, AMZNMKTPLACE AMAZON.CO,ITEMS NEEDED FOR THE THORNTON ROAD HOME (100%),Peoples Services,Equipment And Materials Purchase,A40000,
http://opendatacommunities.org/id/london-borough-council/sutton,London Borough of Sutton,09/11/2021,10005468,31.95, AMZNMKTPLACE,SPLIT - 10 PY EXEL MOP HEADS WITH COLOUR CODED EXEL HANDLE AND MOP BUCKET - RED (33.33%),Peoples Services,Equipment And Materials Purchase,A40000,
http://opendatacommunities.org/id/london-borough-council/sutton,London Borough of Sutton,09/11/2021,10005468,31.95, AMZNMKTPLACE,SPLIT - 10 PY EXEL MOP HEADS WITH COLOUR CODED EXEL HANDLE AND MOP BUCKET - BLUE (33.34%),Peoples Services,Equipment And Materials Purchase,A40000,
http://opendatacommunities.org/id/london-borough-council/sutton,London Borough of Sutton,05/11/2021,10005468,46.39, WWW.DORSET-NURSING.CO.,DORSET NURSING SUPPLIES. PAYMENT,Peoples Services,Equipment And Materials Purchase,A40000,
http://opendatacommunities.org/id/london-borough-council/sutton,London Borough of Sutton,10/11/2021,10005468,4.99, AMZNMKTPLACE,"SPLIT - JANTEX CC932 SOFT DUSTPAN AND BRUSH SET, 220 MM WIDE, BLUE (100%)",Peoples Services,Equipment And Materials Purchase,A40000,
http://opendatacommunities.org/id/london-borough-council/sutton,London Borough of Sutton,09/11/2021,10005468,31.95, AMZNMKTPLACE,SPLIT - 10 PY EXEL MOP HEADS WITH COLOUR CODED EXEL HANDLE AND MOP BUCKET - GREEN (33.33%),Peoples Services,Equipment And Materials Purchase,A40000,
http://opendatacommunities.org/id/london-borough-council/sutton,London Borough of Sutton,09/11/2021,10005468,6.99, AMZNMKTPLACE,SPLIT - CLEANING CADDY WITH HANDLE CLEANERS CADDY ORGANISER CARRY BASKETS FOR CLEANING PRODUCTS (RED) (24.14%),Peoples Services,Equipment And Materials Purchase,A40000,
http://opendatacommunities.org/id/london-borough-council/sutton,London Borough of Sutton,09/11/2021,10005468,4.99, AMZNMKTPLACE,"SPLIT - HQDEAL 2 CM COLOURED DOT STICKERS, SELF ADHESIVE ROUND CODING STICKERS LABELS, CIRCLE REWARD CRAFT STICKERS FOR PAPER SCRAPBOOK, 6 COLOURS, PACK OF 72 (17.23%)",Peoples Services,Equipment And Materials Purchase,A40000,
http://opendatacommunities.org/id/london-borough-council/sutton,London Borough of Sutton,09/11/2021,10005468,16.98, AMZNMKTPLACE,"SPLIT - PROFESSIONAL FLAT MOP WITH 4 PCS REPLACEMENT MOP PADS,MICROFIBER DUST CLEANING MOP TWO KINDS OF CHOICES FOR FLOOR CLEANING (58.63%)",Peoples Services,Equipment And Materials Purchase,A40000,
http://opendatacommunities.org/id/london-borough-council/sutton,London Borough of Sutton,08/11/2021,10005468,18.64, AMZNMKTPLACE,SPLIT - 20PK MICROFIBER CLEANING CLOTH | 28CM X 28CM SUPER ABSORBENT & LINT FREE MICROFIBRE CLOTH FOR HOME AND OFFICE USE (104.37%),Peoples Services,Equipment And Materials Purchase,A40000,
http://opendatacommunities.org/id/london-borough-council/sutton,London Borough of Sutton,08/11/2021,10005468,-0.78, AMZNMKTPLACE,BALANCING ENTRY AMOUNT (-13.11%),Peoples Services,Equipment And Materials Purchase,A40000,
http://opendatacommunities.org/id/london-borough-council/sutton,London Borough of Sutton,08/11/2021,10005468,13.79, AMZNMKTPLACE,SPLIT - LONG HANDLED DUSTPAN AND BRUSH SET LOBBY DUST PAN WITH LONG HANDLE SWEEPING BROOM (GREEN) (33.18%),Peoples Services,Equipment And Materials Purchase,A40000,
http://opendatacommunities.org/id/london-borough-council/sutton,London Borough of Sutton,10/11/2021,10005468,24.95, SP   PATHISOL,ITEMS NEEDED FOR THORNTON ROAD,Peoples Services,Equipment And Materials Purchase,A40000,
http://opendatacommunities.org/id/london-borough-council/sutton,London Borough of Sutton,11/11/2021,10005468,64.79, AMZNMKTPLACE AMAZON.CO,ITEMS NEEDED FOR THE THORNTON ROAD HOME (100%),Peoples Services,Equipment And Materials Purchase,A40000,
http://opendatacommunities.org/id/london-borough-council/sutton,London Borough of Sutton,11/11/2021,10005468,183.32, CURRYS ONLINE,ITEMS NEEDED FOR THORNTON ROAD,Peoples Services,Equipment And Materials Purchase,A40000,
http://opendatacommunities.org/id/london-borough-council/sutton,London Borough of Sutton,14/11/2021,10005468,22.29, AMZNBUSINESS VU0IL8GX5,ITEMS NEEDED FOR THE THORNTON ROAD HOME (70.12%),Peoples Services,Equipment And Materials Purchase,A40000,
http://opendatacommunities.org/id/london-borough-council/sutton,London Borough of Sutton,14/11/2021,10005468,9.50, AMZNBUSINESS VU0IL8GX5,ITEMS NEEDED FOR THE THORNTON ROAD HOME (29.88%),Peoples Services,Equipment And Materials Purchase,A40000,
http://opendatacommunities.org/id/london-borough-council/sutton,London Borough of Sutton,26/10/2021,10005468,16.66, AMZNMKTPLACE AMAZON.CO,"SPLIT - AMAZON BRAND - EONO FIXED TV WALL BRACKET, ULTRA SLIM TV WALL MOUNT FOR MOST 26-55 INCH LED, LCD OLED AND PLASMA TV WITH VESA 75X75-400X400MM UP TO 45 (83.35%)",Peoples Services,Equipment And Materials Purchase,A40000,
http://opendatacommunities.org/id/london-borough-council/sutton,London Borough of Sutton,26/10/2021,10005468,4.16, AMZNMKTPLACE AMAZON.CO,BALANCING ENTRY AMOUNT (16.65%),Peoples Services,Equipment And Materials Purchase,A40000,
http://opendatacommunities.org/id/london-borough-council/sutton,London Borough of Sutton,27/10/2021,10005468,18.82, AMZNMKTPLACE AMAZON.CO,"SPLIT - 6 PAIRS SPA SLIPPERS - CLOSED TOE FLUFFY CORAL FLEECE SLIPPERS,NON-SLIP SLIPPERS FIT SIZE FOR MEN AND WOMEN,THICKEN WASHABLE SLIPPERSFOR HOTEL HOME GU (81.9%)",Peoples Services,Equipment And Materials Purchase,A40000,
http://opendatacommunities.org/id/london-borough-council/sutton,London Borough of Sutton,01/11/2021,10005468,6.58, AMZNMKTPLACE,"SPLIT - 100 PIECES ADHESIVE CABLE CLIPS WIRE CLIPS CABLE MANAGEMENT WIRE CORD HOLDER (13 X 10 MM, WHITE) (61.27%)",Peoples Services,Equipment And Materials Purchase,A40000,
http://opendatacommunities.org/id/london-borough-council/sutton,London Borough of Sutton,01/11/2021,10005468,4.16, AMZNMKTPLACE,BALANCING ENTRY AMOUNT (38.73%),Peoples Services,Equipment And Materials Purchase,A40000,
http://opendatacommunities.org/id/london-borough-council/sutton,London Borough of Sutton,08/11/2021,10005468,6.99, AMZNMKTPLACE,SPLIT - CLEANING CADDY WITH HANDLE CLEANERS CADDY ORGANISER CARRY BASKETS FOR CLEANING PRODUCTS (BLUE) (16.82%),Peoples Services,Equipment And Materials Purchase,A40000,
http://opendatacommunities.org/id/london-borough-council/sutton,London Borough of Sutton,08/11/2021,10005468,13.79, AMZNMKTPLACE,SPLIT - LONG HANDLED DUSTPAN AND BRUSH SET LOBBY DUST PAN WITH LONG HANDLE SWEEPING BROOM (RED) (33.18%),Peoples Services,Equipment And Materials Purchase,A40000,
http://opendatacommunities.org/id/london-borough-council/sutton,London Borough of Sutton,08/11/2021,10005468,6.99, AMZNMKTPLACE,SPLIT - CLEANING CADDY WITH HANDLE CLEANERS CADDY ORGANISER CARRY BASKETS FOR CLEANING PRODUCTS (GREEN) (16.82%),Peoples Services,Equipment And Materials Purchase,A40000,
http://opendatacommunities.org/id/london-borough-council/sutton,London Borough of Sutton,26/10/2021,10005468,751.87, ARGOS LTD,EQUIPMENT PURCHASE,Peoples Services,Equipment And Materials Purchase,A40000,
http://opendatacommunities.org/id/london-borough-council/sutton,London Borough of Sutton,02/11/2021,10005468,80.00, B&Q LTD,APPLIANCES,Peoples Services,Equipment And Materials Purchase,A40000,
http://opendatacommunities.org/id/london-borough-council/sutton,London Borough of Sutton,14/11/2021,10005468,9.95, AMZNMKTPLACE AMAZON.CO,ITEMS NEEDED FOR THE THORNTON ROAD HOME (100%),Peoples Services,Equipment And Materials Purchase,A40000,
http://opendatacommunities.org/id/london-borough-council/sutton,London Borough of Sutton,26/10/2021,10005468,31.80, WWW.VEOLIA.COM,WASTE COLLECTION,Peoples Services,Removal Services,A44075,
http://opendatacommunities.org/id/london-borough-council/sutton,London Borough of Sutton,25/11/2021,10005468,19.98, AMZNMKTPLACE,ITEMS NEEDED FOR THE THORNTON ROAD HOME (100%),Peoples Services,Miscellaneous Expenses,A49000,
http://opendatacommunities.org/id/london-borough-council/sutton,London Borough of Sutton,21/11/2021,10005468,66.00, AMZNBUSINESS J89NB8F25,ITEMS NEEDED FOR THE THORNTON ROAD HOME (100%),Peoples Services,Miscellaneous Expenses,A49000,
http://opendatacommunities.org/id/london-borough-council/sutton,London Borough of Sutton,23/11/2021,10005468,24.98, AMZNMKTPLACE AMAZON.CO,ITEMS NEEDED FOR THE THORNTON ROAD HOME (78.38%),Peoples Services,Miscellaneous Expenses,A49000,
http://opendatacommunities.org/id/london-borough-council/sutton,London Borough of Sutton,22/11/2021,10005468,7.39, AMZNMKTPLACE AMAZON.CO,ITEMS NEEDED FOR THE THORNTON ROAD HOME (100%),Peoples Services,Miscellaneous Expenses,A49000,
http://opendatacommunities.org/id/london-borough-council/sutton,London Borough of Sutton,24/11/2021,10005468,11.65, AMZNMKTPLACE AMAZON.CO,ITEMS NEEDED FOR THORNTON ROAD,Peoples Services,Miscellaneous Expenses,A49000,
http://opendatacommunities.org/id/london-borough-council/sutton,London Borough of Sutton,24/11/2021,10005468,8.95, AMZNBUSINESS OY9P255R5,ITEMS NEEDED FOR THE THORNTON ROAD HOME (100%),Peoples Services,Miscellaneous Expenses,A49000,
http://opendatacommunities.org/id/london-borough-council/sutton,London Borough of Sutton,29/10/2021,10005468,14.99, AMAZON.CO.UK FD4T79OD5,SPLIT - AMAZON BASICS ALUMINUM FRAME CORK NOTICE BOARD 90CM X 60CM (100%),Peoples Services,Miscellaneous Expenses,A49000,
http://opendatacommunities.org/id/london-borough-council/sutton,London Borough of Sutton,30/10/2021,10005468,29.16, AMAZON.CO.UK J289J6PI5,"SPLIT - AMAZON BASICS WHITEBOARD DRYWIPE MAGNETIC WITH PEN TRAY AND ALUMINIUM TRIM, 120 CM X 90 CM (WXH) (100%)",Peoples Services,Miscellaneous Expenses,A49000,
http://opendatacommunities.org/id/london-borough-council/sutton,London Borough of Sutton,23/11/2021,10005468,10.99, AMZNMKTPLACE AMAZON.CO,ITEMS NEEDED FOR THE THORNTON ROAD HOME (100%),Peoples Services,Miscellaneous Expenses,A49000,
http://opendatacommunities.org/id/london-borough-council/sutton,London Borough of Sutton,23/11/2021,10005468,43.32, AMZNMKTPLACE AMAZON.CO,ITEM NEEDED FOR THORNTON ROAD,Peoples Services,Miscellaneous Expenses,A49000,
http://opendatacommunities.org/id/london-borough-council/sutton,London Borough of Sutton,23/11/2021,10005468,8.95, AMZNBUSINESS 9Q0DW0QE5,ITEMS NEEDED FOR THE THORNTON ROAD HOME (74.96%),Peoples Services,Miscellaneous Expenses,A49000,
http://opendatacommunities.org/id/london-borough-council/sutton,London Borough of Sutton,23/11/2021,10005468,2.99, AMZNBUSINESS 9Q0DW0QE5,ITEMS NEEDED FOR THE THORNTON ROAD HOME (25.04%),Peoples Services,Miscellaneous Expenses,A49000,
http://opendatacommunities.org/id/london-borough-council/sutton,London Borough of Sutton,23/11/2021,10005468,13.99, AMZNMKTPLACE AMAZON.CO,ITEM NEEDED FOR THORNTON ROAD,Peoples Services,Miscellaneous Expenses,A49000,
http://opendatacommunities.org/id/london-borough-council/sutton,London Borough of Sutton,23/11/2021,10005468,23.97, AMZNMKTPLACE,ITEMS NEEDED FOR THE THORNTON ROAD HOME (45.27%),Peoples Services,Miscellaneous Expenses,A49000,
http://opendatacommunities.org/id/london-borough-council/sutton,London Borough of Sutton,23/11/2021,10005468,12.99, AMZNMKTPLACE,ITEMS NEEDED FOR THE THORNTON ROAD HOME (24.53%),Peoples Services,Miscellaneous Expenses,A49000,
http://opendatacommunities.org/id/london-borough-council/sutton,London Borough of Sutton,23/11/2021,10005468,15.99, AMZNMKTPLACE,ITEMS NEEDED FOR THE THORNTON ROAD HOME (30.2%),Peoples Services,Miscellaneous Expenses,A49000,
http://opendatacommunities.org/id/london-borough-council/sutton,London Borough of Sutton,23/11/2021,10005468,14.39, AMZNMKTPLACE,ITEMS NEEDED FOR THE THORNTON ROAD HOME (100%),Peoples Services,Miscellaneous Expenses,A49000,
http://opendatacommunities.org/id/london-borough-council/sutton,London Borough of Sutton,23/11/2021,10005468,6.89, AMZNMKTPLACE AMAZON.CO,ITEMS NEEDED FOR THE THORNTON ROAD HOME (21.62%),Peoples Services,Miscellaneous Expenses,A49000,
http://opendatacommunities.org/id/london-borough-council/sutton,London Borough of Sutton,21/11/2021,10005468,66.00, AMZNBUSINESS WD9FK99D5,ITEMS NEEDED FOR THE THORNTON ROAD HOME (100%),Peoples Services,Miscellaneous Expenses,A49000,
http://opendatacommunities.org/id/london-borough-council/sutton,London Borough of Sutton,21/11/2021,10005468,11.99, AMZNMKTPLACE,ITEMS NEEDED FOR THE THORNTON ROAD HOME (100%),Peoples Services,Miscellaneous Expenses,A49000,
http://opendatacommunities.org/id/london-borough-council/sutton,London Borough of Sutton,21/11/2021,10005468,16.92, AMZNMKTPLACE,ITEMS NEEDED FOR THE THORNTON ROAD HOME (100%),Peoples Services,Miscellaneous Expenses,A49000,
http://opendatacommunities.org/id/london-borough-council/sutton,London Borough of Sutton,21/11/2021,10005468,3.94, AMZNBUSINESS DU7BA26E5,ITEMS NEEDED FOR THE THORNTON ROAD HOME (100%),Peoples Services,Miscellaneous Expenses,A49000,
http://opendatacommunities.org/id/london-borough-council/sutton,London Borough of Sutton,16/11/2021,10005468,16.99, AMZNMKTPLACE AMAZON.CO,CLEANING SUPPLIES NEEDED FOR THE HOME (100%),Peoples Services,Miscellaneous Expenses,A49000,
http://opendatacommunities.org/id/london-borough-council/sutton,London Borough of Sutton,21/11/2021,10005468,33.00, AMZNBUSINESS 4D1LN1735,ITEMS NEEDED FOR THE THORNTON ROAD HOME (100%),Peoples Services,Miscellaneous Expenses,A49000,
http://opendatacommunities.org/id/london-borough-council/sutton,London Borough of Sutton,01/11/2021,10005468,44.69, AMZNMKTPLACE,ITEMS NEEDED FOR THE THORNTON ROAD HOME (100%),Peoples Services,Miscellaneous Expenses,A49000,
http://opendatacommunities.org/id/london-borough-council/sutton,London Borough of Sutton,23/11/2021,10005468,6.85, AMZNMKTPLACE,ITEMS NEEDED FOR THE THORNTON ROAD HOME (68.71%),Peoples Services,Miscellaneous Expenses,A49000,
http://opendatacommunities.org/id/london-borough-council/sutton,London Borough of Sutton,23/11/2021,10005468,3.12, AMZNMKTPLACE,BALANCING ENTRY AMOUNT (31.29%),Peoples Services,Miscellaneous Expenses,A49000,
http://opendatacommunities.org/id/london-borough-council/sutton,London Borough of Sutton,29/10/2021,10005468,-10.71, AMZNMKTPLACE AMAZON.CO,"SPLIT - MIRROR WALL STICKERS, 36 PIECES HEXAGONAL ACRYLIC MIRROR WALL STICKER PLASTIC MIRROR SELF ADHESIVE TILES, 3D REMOVABLE ACRYLIC WALL STICKER FOR HOME L (72.02%)",Peoples Services,Miscellaneous Expenses,A49000,
http://opendatacommunities.org/id/london-borough-council/sutton,London Borough of Sutton,29/10/2021,10005468,-4.16, AMZNMKTPLACE AMAZON.CO,BALANCING ENTRY AMOUNT (27.98%),Peoples Services,Miscellaneous Expenses,A49000,
http://opendatacommunities.org/id/london-borough-council/sutton,London Borough of Sutton,23/11/2021,10005468,150.00, H2O DRY CLEANERS,WORK NEEDED FOR THORNTON ROAD,Peoples Services,Miscellaneous Expenses,A49000,
http://opendatacommunities.org/id/london-borough-council/sutton,London Borough of Sutton,23/11/2021,10005468,45.00, AMZNMKTPLACE AMAZON.CO,ITEMS NEEDED FOR THE THORNTON ROAD HOME (100%),Peoples Services,Miscellaneous Expenses,A49000,
http://opendatacommunities.org/id/london-borough-council/sutton,London Borough of Sutton,11/11/2021,10005468,16.31, AMZNMKTPLACE,ITEMS NEEDED FOR THE LEAVING CARE PERSON (83.21%),Peoples Services,Miscellaneous Expenses,A49000,
http://opendatacommunities.org/id/london-borough-council/sutton,London Borough of Sutton,11/11/2021,10005468,3.29, AMZNMKTPLACE,BALANCING ENTRY AMOUNT (16.79%),Peoples Services,Miscellaneous Expenses,A49000,
http://opendatacommunities.org/id/london-borough-council/sutton,London Borough of Sutton,11/11/2021,10005468,33.95, AMZNMKTPLACE,ITEMS NEEDED FOR THE LEAVING CARE PERSON (100%),Peoples Services,Miscellaneous Expenses,A49000,
http://opendatacommunities.org/id/london-borough-council/sutton,London Borough of Sutton,13/11/2021,10005468,9.95, AMZNMKTPLACE AMAZON.CO,ITEMS NEEDED FOR THE LEAVING CARE PERSON (100%),Peoples Services,Miscellaneous Expenses,A49000,
http://opendatacommunities.org/id/london-borough-council/sutton,London Borough of Sutton,27/10/2021,10005468,339.00, AO RETAIL LIMITED,SET UP COST,Peoples Services,Set Up Costs - Children Leaving Care,A61021,
http://opendatacommunities.org/id/london-borough-council/sutton,London Borough of Sutton,27/10/2021,10005468,289.00, AO RETAIL LIMITED,SET UP COST,Peoples Services,Set Up Costs - Children Leaving Care,A61021,
http://opendatacommunities.org/id/london-borough-council/sutton,London Borough of Sutton,18/11/2021,10005468,45.82, ARGOS LTD,SETTING UP COSTS FOR A YOUNG PERSON,Peoples Services,Set Up Costs - Children Leaving Care,A61021,
http://opendatacommunities.org/id/london-borough-council/sutton,London Borough of Sutton,30/10/2021,10005468,159.90, ZOOM.US 888-799-9666,SUBSCRIPTION NEEDED FOR TEAM MEEITNGS,Peoples Services,Subscriptions,A47010,
http://opendatacommunities.org/id/london-borough-council/sutton,London Borough of Sutton,01/11/2021,10005468,159.90, ZOOM.US 888-799-9666,SUBSCRIPTION NEEDED FOR TEAM MEEITNGS,Peoples Services,Subscriptions,A47010,
http://opendatacommunities.org/id/london-borough-council/sutton,London Borough of Sutton,17/11/2021,10005468,159.90, ZOOM.US 888-799-9666,MONTHLY SUBSCRIPTION FEE FOR A TEAM,Peoples Services,Subscriptions,A47010,
http://opendatacommunities.org/id/london-borough-council/sutton,London Borough of Sutton,12/11/2021,10005468,25.00, GEN REGISTER OFFICE,BIRTH CERTIFICATE PAYMENT,Peoples Services,Equipment And Materials Purchase,A40000,
http://opendatacommunities.org/id/london-borough-council/sutton,London Borough of Sutton,18/11/2021,10005468,14.00, GEN REGISTER OFFICE,BIRTH CERTIFICATE PAYMENT,Peoples Services,Equipment And Materials Purchase,A40000,
http://opendatacommunities.org/id/london-borough-council/sutton,London Borough of Sutton,29/10/2021,10005468,88.00, SUTTON REGISTER OFFICE,BIRTH CERTIFICATE PAYMENT,Peoples Services,Equipment And Materials Purchase,A40000,
http://opendatacommunities.org/id/london-borough-council/sutton,London Borough of Sutton,27/10/2021,10005468,56.69, TENPIN.CO.UK,TENPIN BOWLING - CONTACT ACTIVITY FOR CLA,Peoples Services,Equipment And Materials Purchase,A40000,
http://opendatacommunities.org/id/london-borough-council/sutton,London Borough of Sutton,02/11/2021,10005468,18.33, SUTTON REGISTER OFFICE,BIRTH CERT NEEDED FOR COURT,Peoples Services,Equipment And Materials Purchase,A40000,
http://opendatacommunities.org/id/london-borough-council/sutton,London Borough of Sutton,27/10/2021,10005468,38.25, GRAVITY FITNESS LTD,GRACITY ROCKS URBAN CLIMB - CONTACT VISIT CLA,Peoples Services,Equipment And Materials Purchase,A40000,
http://opendatacommunities.org/id/london-borough-council/sutton,London Borough of Sutton,27/10/2021,10005468,42.00, SQ  ROLLERWORLD LTD,STANDARD BOWLING - CONTACT ACTIVITY FOR CLA,Peoples Services,Equipment And Materials Purchase,A40000,
http://opendatacommunities.org/id/london-borough-council/sutton,London Borough of Sutton,06/10/2021,10005468,-25.00, GEN REGISTER OFFICE,BIRTH CERTIFICATE REFUND,Peoples Services,Miscellaneous Expenses,A49000,
http://opendatacommunities.org/id/london-borough-council/sutton,London Borough of Sutton,25/11/2021,10005468,486.42, UKVI,VISA FEE,Peoples Services,Equipment And Materials Purchase,A40000,
http://opendatacommunities.org/id/london-borough-council/sutton,London Borough of Sutton,26/11/2021,10005468,13.38, UKVI,FOREIGN EXCHANGE FEE,Peoples Services,Equipment And Materials Purchase,A40000,
http://opendatacommunities.org/id/london-borough-council/sutton,London Borough of Sutton,25/11/2021,10005468,"1,961.89", IMM HEALTH SURCHAR,IMMIGRATION HEALTH SURCHARGE,Peoples Services,Equipment And Materials Purchase,A40000,
http://opendatacommunities.org/id/london-borough-council/sutton,London Borough of Sutton,26/11/2021,10005468,53.95, UKVI,FOREIGN EXCHANGE FEE,Peoples Services,Equipment And Materials Purchase,A40000,
http://opendatacommunities.org/id/london-borough-council/sutton,London Borough of Sutton,28/10/2021,10005468,42.43, TESCO STORES 5999,TESCO FOOD ORDER,Peoples Services,Equipment And Materials Purchase,A40000,
http://opendatacommunities.org/id/london-borough-council/sutton,London Borough of Sutton,26/10/2021,10005468,38.00, GEN REGISTER OFFICE,BIRTH CERTIFICATE PAYMENT,Peoples Services,Equipment And Materials Purchase,A40000,
http://opendatacommunities.org/id/london-borough-council/sutton,London Borough of Sutton,26/10/2021,10005468,80.25, GEN REGISTER OFFICE,BIRTH CERTIFICATE PAYMENT,Peoples Services,Equipment And Materials Purchase,A40000,
http://opendatacommunities.org/id/london-borough-council/sutton,London Borough of Sutton,29/10/2021,10005468,254.00, HM PASSPORT OFFICE,PASSPORT,Peoples Services,Equipment And Materials Purchase,A40000,
http://opendatacommunities.org/id/london-borough-council/sutton,London Borough of Sutton,12/11/2021,10005468,41.00, MINICABIT,CAB JOURNEY NEEDED FOR YP- HAS BEEN REFUNDED,Peoples Services,Miscellaneous Expenses,A49000,
http://opendatacommunities.org/id/london-borough-council/sutton,London Borough of Sutton,12/11/2021,10005468,70.83, MANCHESTER TAXI SERVIC,TAXI NEEDED FOR YP,Peoples Services,Miscellaneous Expenses,A49000,
http://opendatacommunities.org/id/london-borough-council/sutton,London Borough of Sutton,12/11/2021,10005468,36.34, MINICABIT,CAB JOURNEY NEEDED FOR YP,Peoples Services,Miscellaneous Expenses,A49000,
http://opendatacommunities.org/id/london-borough-council/sutton,London Borough of Sutton,12/11/2021,10005468,16.02, MINICABIT,TRANPSORT NEEDED FOR YP,Peoples Services,Miscellaneous Expenses,A49000,
http://opendatacommunities.org/id/london-borough-council/sutton,London Borough of Sutton,13/11/2021,10005468,-19.22, MINICABIT,REFUND FOR TAXI FOR YP,Peoples Services,Miscellaneous Expenses,A49000,
http://opendatacommunities.org/id/london-borough-council/sutton,London Borough of Sutton,13/11/2021,10005468,-49.20, MINICABIT,REFUND FOR TAXI FOR YP,Peoples Services,Miscellaneous Expenses,A49000,
http://opendatacommunities.org/id/london-borough-council/sutton,London Borough of Sutton,13/11/2021,10005468,-43.61, MINICABIT,REFUND FOR TAXI FOR YP,Peoples Services,Miscellaneous Expenses,A49000,
http://opendatacommunities.org/id/london-borough-council/sutton,London Borough of Sutton,13/11/2021,10005468,-17.55, MINICABIT,REFUND FOR TAXI FOR YP,Peoples Services,Miscellaneous Expenses,A49000,
http://opendatacommunities.org/id/london-borough-council/sutton,London Borough of Sutton,12/11/2021,10005468,14.62, MINICABIT,CAB JOURNEY NEEDED FOR YP,Peoples Services,Miscellaneous Expenses,A49000,
http://opendatacommunities.org/id/london-borough-council/sutton,London Borough of Sutton,26/10/2021,10005468,-38.00, GEN REGISTER OFFICE,BIRTH CERTIFICATE PAYMENT REFUND,Peoples Services,Miscellaneous Expenses,A49000,
http://opendatacommunities.org/id/london-borough-council/sutton,London Borough of Sutton,23/11/2021,10005468,22.58, HOBBYCRAFT TRADING LIM,ACTIVITY CRAFTS NEEDED FOR WORKER,Peoples Services,Miscellaneous Expenses,A49000,
http://opendatacommunities.org/id/london-borough-council/sutton,London Borough of Sutton,02/11/2021,10005468,63.33, STARLITE PRIVATE HIRE,TAXI NEEDED FOR YP,Peoples Services,Miscellaneous Expenses,A49000,
http://opendatacommunities.org/id/london-borough-council/sutton,London Borough of Sutton,08/11/2021,10005468,12.72, MINICABIT,CAB NEEDED FOR CLIENT,Peoples Services,Miscellaneous Expenses,A49000,
http://opendatacommunities.org/id/london-borough-council/sutton,London Borough of Sutton,27/10/2021,10005468,16.15, MINICABIT,CAB NEEDED FOR YP,Peoples Services,C.C.A Travel & Subsistance,A61010,
http://opendatacommunities.org/id/london-borough-council/sutton,London Borough of Sutton,10/11/2021,10005468,11.42, POST OFFICE COUNTER,"NEEDS TO BE CHARGED BETWEEN G03110 AND G03120, WAS CHARGED ALL TOGETHER IN POST OFFICE",Peoples Services,Client Care/Assistance,A61011,
http://opendatacommunities.org/id/london-borough-council/sutton,London Borough of Sutton,16/11/2021,10005468,70.83, HM PASSPORT OFFICE,ITEM NEEDED FOR A CLIENT,Peoples Services,Client Care/Assistance,A61011,
http://opendatacommunities.org/id/london-borough-council/sutton,London Borough of Sutton,16/11/2021,10005468,48.75, HM PASSPORT OFFICE,ITEM NEEDED FOR A CLIENT,Peoples Services,Client Care/Assistance,A61011,
http://opendatacommunities.org/id/london-borough-council/sutton,London Borough of Sutton,12/11/2021,10005468,"1,960.15", TRAVELODGE,1960.15 - A61011 G03180 9999 - TRAVELODGE,Peoples Services,Client Care/Assistance,A61011,
http://opendatacommunities.org/id/london-borough-council/sutton,London Borough of Sutton,12/11/2021,10005468,"1,889.22", TRAVELODGE,1889.22 - A61011 G03180 9999 - TRAVELODGE,Peoples Services,Client Care/Assistance,A61011,
http://opendatacommunities.org/id/london-borough-council/sutton,London Borough of Sutton,17/11/2021,10005468,70.00, FACEBK  383E473H32,FACEBOOK ADVERTISING FOR FOSTERING RECRUITMENT,Peoples Services,Recruitment Expenses,A15026,
http://opendatacommunities.org/id/london-borough-council/sutton,London Borough of Sutton,10/11/2021,10005468,70.00, FACEBK  MF7NL77H32,FOSTERING RECRUITMENT ADVERTISING - FACEBOOK,Peoples Services,Recruitment Expenses,A15026,
http://opendatacommunities.org/id/london-borough-council/sutton,London Borough of Sutton,26/10/2021,10005468,27.39, FACEBK  BGNTJ6BH32,FACEBOOK ADS FOR FOSTERING RECRUITMENT,Peoples Services,Recruitment Expenses,A15026,
http://opendatacommunities.org/id/london-borough-council/sutton,London Borough of Sutton,18/11/2021,10005468,29.17, MARKS&SPENCER PLC,CLOTHING NEEDED FOR A CLIENT,Peoples Services,Equipment And Materials Purchase,A40000,
http://opendatacommunities.org/id/london-borough-council/sutton,London Borough of Sutton,11/11/2021,10005468,208.25, EVERYONE ACTIVE-DOM,GYM MEMBERSHIP FOR IYS YP,Peoples Services,Equipment And Materials Purchase,A40000,
http://opendatacommunities.org/id/london-borough-council/sutton,London Borough of Sutton,04/11/2021,10005468,208.25, EVERYONE ACTIVE-DOM,GYM MEMBERSHIP NEEDED FOR IYS YP,Peoples Services,Miscellaneous Expenses,A49000,
http://opendatacommunities.org/id/london-borough-council/sutton,London Borough of Sutton,04/11/2021,10005468,250.00, WALLINGTON CARS & COUR,WALLINGTON CARS AND COURIERS PAYMENT,Peoples Services,C.C.A Travel & Subsistance,A61010,
http://opendatacommunities.org/id/london-borough-council/sutton,London Borough of Sutton,08/11/2021,10005468,35.00, WALLINGTON CARS & COUR,TRANSPORT NEEDED FOR CLIENT,Peoples Services,C.C.A Travel & Subsistance,A61010,
http://opendatacommunities.org/id/london-borough-council/sutton,London Borough of Sutton,11/11/2021,10005468,"2,665.83", C2E798600419V UKVI,VISA APPLICATION,Peoples Services,Client Care/Assistance,A61011,
http://opendatacommunities.org/id/london-borough-council/sutton,London Borough of Sutton,11/11/2021,10005468,"2,665.83", C2E798600426T UKVI,VISA APPLICATION,Peoples Services,Client Care/Assistance,A61011,
http://opendatacommunities.org/id/london-borough-council/sutton,London Borough of Sutton,28/10/2021,10005468,149.00, HOTEL AT BOOKING.COM,HOTEL STAY,Peoples Services,Client Care/Assistance,A61011,
http://opendatacommunities.org/id/london-borough-council/sutton,London Borough of Sutton,18/11/2021,10005468,18.53, AMZNMKTPLACE,ITEM NEEDED FOR A CLIENT (83.21%),Peoples Services,Equipment And Materials Purchase,A40000,
http://opendatacommunities.org/id/london-borough-council/sutton,London Borough of Sutton,18/11/2021,10005468,3.74, AMZNMKTPLACE,BALANCING ENTRY AMOUNT (16.79%),Peoples Services,Equipment And Materials Purchase,A40000,
http://opendatacommunities.org/id/london-borough-council/sutton,London Borough of Sutton,12/11/2021,10005468,57.30, TIACARE,ITEMS NEEDED FOR VULNERABLE CLIENT,Peoples Services,Client Care/Assistance,A61011,
http://opendatacommunities.org/id/london-borough-council/sutton,London Borough of Sutton,01/11/2021,10005468,89.03, STORAGEMART UK A-A43E3,STORAGE NEEDED FOR CLIENT,Peoples Services,Storage And Archiving Services,A44085,
http://opendatacommunities.org/id/london-borough-council/sutton,London Borough of Sutton,02/11/2021,10005468,66.67, ACCESS SUTTON,A40000 J64100,Peoples Services,Equipment And Materials Purchase,A40000,
http://opendatacommunities.org/id/london-borough-council/sutton,London Borough of Sutton,29/10/2021,10005468,"3,424.70", TRAVELODGE,HOTEL STAY,Peoples Services,Equipment And Materials Purchase,A40000,
http://opendatacommunities.org/id/london-borough-council/sutton,London Borough of Sutton,12/11/2021,10005468,"3,159.67", TRAVELODGE,3159.67 - A61011 J64100 9999 - TRAVELODGE,Peoples Services,Client Care/Assistance,A61011,
http://opendatacommunities.org/id/london-borough-council/sutton,London Borough of Sutton,02/11/2021,10005468,211.15, ASDA STORES LTD,FOOD VOUCHERS FOR START CLIENTS EMERGENCIES,Peoples Services,Miscellaneous Expenses,A49000,
http://opendatacommunities.org/id/london-borough-council/sutton,London Borough of Sutton,27/10/2021,10005468,14.00, LAMBETH INTERNET PAYM,DEATHCERT,Peoples Services,Funeral Expenses,A44220,
http://opendatacommunities.org/id/london-borough-council/sutton,London Borough of Sutton,27/10/2021,10005468,90.00, ALLIUM,2FUNERALWREATHS,Peoples Services,Funeral Expenses,A44220,
http://opendatacommunities.org/id/london-borough-council/sutton,London Borough of Sutton,08/11/2021,10005468,45.00, THE FLOWER POT,FUNERAL WREATH,Peoples Services,Fees -General-Exempt,A92105,
http://opendatacommunities.org/id/london-borough-council/sutton,London Borough of Sutton,22/11/2021,10005468,166.67, DONATE VIA CAF,DONATION GIVEN ON BEHALF OF LBS,Peoples Services,Miscellaneous Expenses,A49000,
http://opendatacommunities.org/id/london-borough-council/sutton,London Borough of Sutton,10/11/2021,10005468,214.80, WWW.LOCAL.GOV.UK,REDACTED - PERSONAL DATA'ATTENDING THE NATIONAL CHILDREN AND ADULT SERVICES CONFERENCE 2021 ON THE   26TH NOVEMBER 2021,Peoples Services,Conference Expenses,A43075,
http://opendatacommunities.org/id/london-borough-council/sutton,London Borough of Sutton,09/11/2021,10005468,59.97, AMZNMKTPLACE,LARGE KEYPADS,Health and Wellbeing,Equipment And Materials Purchase,A40000,
http://opendatacommunities.org/id/london-borough-council/sutton,London Borough of Sutton,01/11/2021,10005468,739.46, RS COMPONENTS,KORA SC-01 HSE TESTED UNIVERSAL SAFETY,Health and Wellbeing,Equipment And Materials Purchase,A40000,
http://opendatacommunities.org/id/london-borough-council/sutton,London Borough of Sutton,22/11/2021,10005468,59.99, 123 REG LTD,DOMAIN SSL RENEWAL IT,Health and Wellbeing,IT Software Purchase,A45040,
http://opendatacommunities.org/id/london-borough-council/sutton,London Borough of Sutton,22/11/2021,10005468,-59.99, 123 REG LTD,DOMAIN SSL RENEWAL IT,Health and Wellbeing,IT Software Purchase,A45040,
http://opendatacommunities.org/id/london-borough-council/sutton,London Borough of Sutton,22/11/2021,10005468,59.99, 123 REG LTD,DOMAIN SSL RENEWAL IT,Health and Wellbeing,IT Software Purchase,A45040,
http://opendatacommunities.org/id/london-borough-council/sutton,London Borough of Sutton,26/11/2021,10005468,20.68, MOJO HELPDESK,METADOT FOREIGN EXCHANGE FEE IT - JT,Health and Wellbeing,Subscriptions,A47010,
http://opendatacommunities.org/id/london-borough-council/sutton,London Borough of Sutton,26/11/2021,10005468,752.14, MOJO HELPDESK,METADOT CORP IT JT,Health and Wellbeing,Subscriptions,A47010,
http://opendatacommunities.org/id/london-borough-council/sutton,London Borough of Sutton,11/11/2021,10005468,111.38, MTMOMK,CLASSROOM MANAGER OCT 21-OCT22,Health and Wellbeing,Subscriptions,A47010,
http://opendatacommunities.org/id/london-borough-council/sutton,London Borough of Sutton,12/11/2021,10005468,3.06, MTMOMK,CLASSROOM MANAGER OCT 21-OCT22 FOREX,Health and Wellbeing,Subscriptions,A47010,
http://opendatacommunities.org/id/london-borough-council/sutton,London Borough of Sutton,09/11/2021,10005468,518.00, WWW.INSTANTPRINT.C,INSTANTPRINT SPRING22 5000 518.00 091121,Health and Wellbeing,Publicity,A44266,
http://opendatacommunities.org/id/london-borough-council/sutton,London Borough of Sutton,08/11/2021,10005468,50.00, PAYPAL  WOIMT,WHATS ON IN MY TOWN PROMO 50 NOV & DEC 21,Health and Wellbeing,Publicity,A44266,
http://opendatacommunities.org/id/london-borough-council/sutton,London Borough of Sutton,08/11/2021,10005468,47.99, ADOBE STOCK,ADOBE 47.99 071121,Health and Wellbeing,Publicity,A44266,
http://opendatacommunities.org/id/london-borough-council/sutton,London Borough of Sutton,30/10/2021,10005468,81.10, MAILCHIMP,MAILCHIMP 301021 81.10,Health and Wellbeing,Publicity,A44266,
http://opendatacommunities.org/id/london-borough-council/sutton,London Borough of Sutton,17/11/2021,10005468,340.61, WWW.FLORISTSUPPLIESUK.,FLORISTRY KITS,Health and Wellbeing,Equipment And Materials Purchase,A40000,
http://opendatacommunities.org/id/london-borough-council/sutton,London Borough of Sutton,15/11/2021,10005468,18.50, SAINSBURYS S/MKTS,COOKERY,Health and Wellbeing,Equipment And Materials Purchase,A40000,
http://opendatacommunities.org/id/london-borough-council/sutton,London Borough of Sutton,10/11/2021,10005468,24.95, SAINSBURYS S/MKTS,COOKERY,Health and Wellbeing,Equipment And Materials Purchase,A40000,
http://opendatacommunities.org/id/london-borough-council/sutton,London Borough of Sutton,08/11/2021,10005468,17.08, SAINSBURYS S/MKTS,COOKERY,Health and Wellbeing,Equipment And Materials Purchase,A40000,
http://opendatacommunities.org/id/london-borough-council/sutton,London Borough of Sutton,24/11/2021,10005468,18.48, SAINSBURYS S/MKTS,COOKERY,Health and Wellbeing,Equipment And Materials Purchase,A40000,
http://opendatacommunities.org/id/london-borough-council/sutton,London Borough of Sutton,22/11/2021,10005468,14.42, SAINSBURYS S/MKTS,COOKERY,Health and Wellbeing,Equipment And Materials Purchase,A40000,
http://opendatacommunities.org/id/london-borough-council/sutton,London Borough of Sutton,17/11/2021,10005468,17.58, SAINSBURYS S/MKTS,COOKERY,Health and Wellbeing,Equipment And Materials Purchase,A40000,
http://opendatacommunities.org/id/london-borough-council/sutton,London Borough of Sutton,03/11/2021,10005468,19.95, SAINSBURYS S/MKTS,COOKERY,Health and Wellbeing,Equipment And Materials Purchase,A40000,
http://opendatacommunities.org/id/london-borough-council/sutton,London Borough of Sutton,03/11/2021,10005468,20.00, WM MORRISONS STORE,COOKERY,Health and Wellbeing,Equipment And Materials Purchase,A40000,
http://opendatacommunities.org/id/london-borough-council/sutton,London Borough of Sutton,01/11/2021,10005468,18.30, SAINSBURYS S/MKTS,COOKERY,Health and Wellbeing,Equipment And Materials Purchase,A40000,
http://opendatacommunities.org/id/london-borough-council/sutton,London Borough of Sutton,03/11/2021,10005468,16.25, POUNDLAND LTD 1211,COOKERY EQUIPMENT,Health and Wellbeing,Equipment And Materials Purchase,A40000,
http://opendatacommunities.org/id/london-borough-council/sutton,London Borough of Sutton,03/11/2021,10005468,6.90, WILKO RETAIL LIMITED,COOKERY EQUIPMENT,Health and Wellbeing,Equipment And Materials Purchase,A40000,
http://opendatacommunities.org/id/london-borough-council/sutton,London Borough of Sutton,13/11/2021,10005468,-5.40, AMZ AMAZON.CO.UK,"SPLIT - BLACK AND BRITISH: A SHORT, ESSENTIAL HISTORY (100%)",Peoples Services,LAC - Education,A44280,
http://opendatacommunities.org/id/london-borough-council/sutton,London Borough of Sutton,14/11/2021,10005468,200.00, AMAZON PRIME 8W9NP4OE5,AMAZON BUSINESS PRIME TO SAVE ON MULTIPLE POSTAGE COSTS FOR BOOK POSTING,Peoples Services,LAC - Education,A44280,
http://opendatacommunities.org/id/london-borough-council/sutton,London Borough of Sutton,14/11/2021,10005468,-4.99, AMAZON.CO.UK SR7WB9IH5,BALANCING ENTRY AMOUNT (-114.71%),Peoples Services,LAC - Education,A44280,
http://opendatacommunities.org/id/london-borough-council/sutton,London Borough of Sutton,25/11/2021,10005468,6.00, AMAZON.CO.UK 7B29I16V5,SPLIT - GCSE ENGLISH LANGUAGE AQA COMPLETE REVISION & PRACTICE - GRADE 9-1 COURSE (WITH ONLINE EDITION): PERFECT FOR CATCH-UP AND THE 2022 AND 2023 EXAMS (CGP (18.99%),Peoples Services,LAC - Education,A44280,
http://opendatacommunities.org/id/london-borough-council/sutton,London Borough of Sutton,25/11/2021,10005468,8.94, AMAZON.CO.UK 7B29I16V5,"SPLIT - NEW 2021 GCSE MATHS EDEXCEL COMPLETE REVISION & PRACTICE: HIGHER INC ONLINE ED, VIDEOS & QUIZZES: PERFECT FOR CATCH-UP AND THE 2022 AND 2023 EXAMS (CG (30.57%)",Peoples Services,LAC - Education,A44280,
http://opendatacommunities.org/id/london-borough-council/sutton,London Borough of Sutton,25/11/2021,10005468,8.32, AMAZON.CO.UK 7B29I16V5,SPLIT - GRADE 9-1 GCSE COMBINED SCIENCE: EDEXCEL REVISION GUIDE WITH ONLINE EDITION - HIGHER: IDEAL FOR CATCH-UP AND THE 2022 AND 2023 EXAMS (CGP GCSE COMBINE (28.45%),Peoples Services,LAC - Education,A44280,
http://opendatacommunities.org/id/london-borough-council/sutton,London Borough of Sutton,24/11/2021,10005468,6.00, AMAZON.CO.UK LA4YQ5135,SPLIT - GCSE ENGLISH LITERATURE AQA COMPLETE REVISION & PRACTICE - GRADE 9-1 (WITH ONLINE EDITION): PERFECT FOR CATCH-UP AND THE 2022 AND 2023 EXAMS (CGP GCSE (100%),Peoples Services,LAC - Education,A44280,
http://opendatacommunities.org/id/london-borough-council/sutton,London Borough of Sutton,24/11/2021,10005468,254.95, AMZNMKTPLACE AMAZON.CO,"SPLIT - ACER CHROMEBOOK 314 CB314-H - (INTEL CELERON N4020, 4GB, 64GB EMMC, 14 INCH FULL HD DISPLAY, GOOGLE CHROME OS, SILVER) (100%)",Peoples Services,LAC - Education,A44280,
http://opendatacommunities.org/id/london-borough-council/sutton,London Borough of Sutton,21/11/2021,10005468,255.00, AMZNMKTPLACE,"SPLIT - ACER CHROMEBOOK 314 CB314-H - (INTEL CELERON N4000, 4GB RAM, 32GB EMMC, 14 INCH HD DISPLAY, CHROME OS, SILVER) (100%)",Peoples Services,LAC - Education,A44280,
http://opendatacommunities.org/id/london-borough-council/sutton,London Borough of Sutton,18/11/2021,10005468,14.72, ROYAL MAIL GROUP LTD,POSTAGE FOR BOOKS,Peoples Services,LAC - Education,A44280,
http://opendatacommunities.org/id/london-borough-council/sutton,London Borough of Sutton,17/11/2021,10005468,20.36, AMAZON.CO.UK 1C1CJ2KJ5,SPLIT - LONGMAN PHOTO DICTIONARY (100%),Peoples Services,LAC - Education,A44280,
http://opendatacommunities.org/id/london-borough-council/sutton,London Borough of Sutton,14/11/2021,10005468,3.62, AMAZON.CO.UK N16J37KB5,"SPLIT - COLORING BOOK FOR GIRLS FROM 12 YEARS: ZEN INSPIRED EMPLOYMENT BOOK FOR CREATIVE DEVELOPMENT, STRESS MANAGEMENT AND RELAXATION - GREAT GIFT FOR .ADULT (87.17%)",Peoples Services,LAC - Education,A44280,
http://opendatacommunities.org/id/london-borough-council/sutton,London Borough of Sutton,14/11/2021,10005468,4.16, AMAZON.CO.UK N16J37KB5,"SPLIT - LIQUIDRAW 24 FINELINER COLOURING PENS SET FINE POINT PENS 0.4MM ASSORTED COLOURS, FINELINERS COLOURED PENS (100%)",Peoples Services,LAC - Education,A44280,
http://opendatacommunities.org/id/london-borough-council/sutton,London Borough of Sutton,14/11/2021,10005468,-4.35, AMAZON.CO.UK N16J37KB5,BALANCING ENTRY AMOUNT (-87.17%),Peoples Services,LAC - Education,A44280,
http://opendatacommunities.org/id/london-borough-council/sutton,London Borough of Sutton,25/11/2021,10005468,6.95, AMAZON.CO.UK 7B29I16V5,SPLIT - GCSE HISTORY EDEXCEL REVISION GUIDE - FOR THE GRADE 9-1 COURSE: IDEAL FOR CATCH-UP AND THE 2022 AND 2023 EXAMS (CGP GCSE HISTORY 9-1 REVISION) (21.99%),Peoples Services,LAC - Education,A44280,
http://opendatacommunities.org/id/london-borough-council/sutton,London Borough of Sutton,08/11/2021,10005468,6.99, AMAZON.CO.UK GY63L4M65,SPLIT - AS GOOD AS DEAD: THE BRAND NEW AND FINAL BOOK IN THE YA THRILLER TRILOGY THAT EVERYONE IS TALKING ABOUT...: BOOK 3 (A GOOD GIRL'S GUIDE TO MURDER) (99.86%),Peoples Services,LAC - Education,A44280,
http://opendatacommunities.org/id/london-borough-council/sutton,London Borough of Sutton,08/11/2021,10005468,4.00, AMAZON.CO.UK GY63L4M65,SPLIT - THEY BOTH DIE AT THE END: TIKTOK MADE ME BUY IT! THE INTERNATIONAL NO.1 BESTSELLER (57.14%),Peoples Services,LAC - Education,A44280,
http://opendatacommunities.org/id/london-borough-council/sutton,London Borough of Sutton,08/11/2021,10005468,-3.99, AMAZON.CO.UK GY63L4M65,BALANCING ENTRY AMOUNT (-171%),Peoples Services,LAC - Education,A44280,
http://opendatacommunities.org/id/london-borough-council/sutton,London Borough of Sutton,02/11/2021,10005468,255.00, AMZNMKTPLACE,"SPLIT - ACER CHROMEBOOK 314 CB314-H - (INTEL CELERON N4000, 4GB RAM, 32GB EMMC, 14 INCH HD DISPLAY, CHROME OS, SILVER) (100%)",Peoples Services,LAC - Education,A44280,
http://opendatacommunities.org/id/london-borough-council/sutton,London Borough of Sutton,02/11/2021,10005468,255.00, AMZNMKTPLACE AMAZON.CO,"SPLIT - ACER CHROMEBOOK 314 CB314-H - (INTEL CELERON N4000, 4GB RAM, 32GB EMMC, 14 INCH HD DISPLAY, CHROME OS, SILVER) (100%)",Peoples Services,LAC - Education,A44280,
http://opendatacommunities.org/id/london-borough-council/sutton,London Borough of Sutton,12/11/2021,10005468,6.59, AMAZON.CO.UK QS3X90Z05,SPLIT - LARGE PRINT EASY COLOR & FRAME - CALM (ADULT COLORING BOOK) (100%),Peoples Services,LAC - Education,A44280,
http://opendatacommunities.org/id/london-borough-council/sutton,London Borough of Sutton,14/11/2021,10005468,3.62, AMAZON.CO.UK SR7WB9IH5,"SPLIT - COLORING BOOK FOR GIRLS FROM 12 YEARS: ZEN INSPIRED EMPLOYMENT BOOK FOR CREATIVE DEVELOPMENT, STRESS MANAGEMENT AND RELAXATION - GREAT GIFT FOR .ADULT (100%)",Peoples Services,LAC - Education,A44280,
http://opendatacommunities.org/id/london-borough-council/sutton,London Borough of Sutton,14/11/2021,10005468,4.16, AMAZON.CO.UK SR7WB9IH5,"SPLIT - LIQUIDRAW 24 FINELINER COLOURING PENS SET FINE POINT PENS 0.4MM ASSORTED COLOURS, FINELINERS COLOURED PENS (114.71%)",Peoples Services,LAC - Education,A44280,
